{"text_format":"1","workbook":"xlsx","n_sheets":25,"sheets":["Cover Page","Facility Info","Contents","Operational Data","Operational Summary","Perf. Form 1","Energy Form 1","Permit Compliance","Improvements","Public Liasion","CO2 N2O","Residue Quality ","Water","Air (periodic)","Air (CEMS)","HCl","SO2","NOx","TOC","Particulates","CO 0.5 hourly","CO 95% 10 min","NH3","Template changes log","Sheet1"],"not_rendered":{"charts":8,"images":4,"macros":1,"external_links":1,"defined_names":24,"comments":0,"pivot_tables":0},"unopened":[],"bounds":{"document_bytes":16777216,"sheet_cells":100000,"rows_first":2000,"rows_last":500,"rows_between":2000,"halvings":0,"cell_chars":16384,"cell_head_chars":4096},"cells_cut":0,"cells_raw":0,"read":"whole","date_system":"1900"}

{"sheet":"Cover Page","index":0,"n_rows":53,"n_cols":14,"rows_kept":53,"cut":false,"hidden":false,"merged":[[13,13,18,15],[34,1,34,8],[0,3,5,6],[7,1,23,8],[28,1,28,8],[30,1,30,8],[32,1,32,8],[48,2,48,3],[48,6,48,8],[52,2,52,3],[36,1,36,8],[44,2,44,4],[46,2,46,3],[46,6,46,8],[40,2,40,8],[42,2,42,4]]}
[null,null,null,"Add company logo"]
[null,null,null,null,null,null,null,null,null,null,null,null,null,"Version 24.2a (for incinerators) - 27/11/24"]
[]
[null,null,null,null,null,null,null,null,null,null,null,null,null,"Note that there is another version of this template available for co-incinerators"]
[]
[]
[]
[null,"Add photo"]
[]
[]
[]
[]
[null,null,null,null,null,null,null,null,null,null,null,null,null,"Notes:"]
[null,null,null,null,null,null,null,null,null,null,null,null,null,"This template may require adjustments by individual operators to meet specific reporting requirements as defined in the site Permit(s)"]
[]
[]
[]
[]
[]
[]
[]
[]
[]
[]
[]
[]
[]
[]
[null,"Annual Performance Report 2024"]
[]
[null,"Permit EPR/SP3034SN"]
[]
[null,"Eastcroft  EfW Site"]
[]
[]
[]
[null,"WasteNotts (Reclamation) Limited"]
[]
[null,"Year:",2024]
[]
[null,"Address:","Incinerator Road, Off Cattle Market Road, Nottingham NG23JH"]
[]
[null,"Tel: ","0115 9869505"]
[]
[null,"Email: ","leigh.hornsby@fccenvironment.co.uk"]
[]
[null,"Prepared by:","Leigh Hornsby",null,null,"Position:","Environment Manager"]
[]
[null,"Approved by:","Ashley Corke",null,null,"Position:","General Manager"]
[]
[null,"Version:",1]
[]
[null,"Issue Date:","2025-01-31"]

{"sheet":"Facility Info","index":1,"n_rows":22,"n_cols":11,"rows_kept":22,"cut":false,"hidden":false,"merged":[[4,10,13,13],[21,10,30,13],[4,0,17,8],[21,0,53,8]]}
[{"$f":"+'Cover Page'!$B$29","v":"Annual Performance Report 2024"},null,null,null,{"$f":"+'Cover Page'!$B$33","v":"Eastcroft  EfW Site"}]
[]
["Plant Description and Design",null,null,null,null,null,null,null,null,null,"Notes:"]
[]
["The EfW facility currently comprises two incineration streams each capable of burning up to 11.7 tonnes/hour of municipal and light commercial and industrial waste. The plant has a theoretical capacity of just over 200,000 tonnes per annum; however with planned maintenance the annual throughput is approximately 185,000 tonnes. The site has planning permission to add a third line to the plant which is included in the scope of the Environmental Permit (EP3034SN) but has yet to be developed. \n\nThe facility generates around 50 tonnes of steam per hour with no electrical generation undertaken at the \nEastcroft facility. Steam is exported to a third party (Nottingham City Council, formerly EnviroEnergy) who operate a combined heat and power facility providing electricity and feeding into Nottingham's district heating network.\n",null,null,null,null,null,null,null,null,null,"Include summary of plant design, design capacity, no. of combustion lines, electrical and heat capacity and any other general information that describes the facility, its location and purpose "]
[]
[]
[]
[]
[]
[]
[]
[]
[]
[]
[]
[]
[]
[]
["Summary of Operational Processes and Procedures"]
[]
["Municipal waste and non-hazardous commercial/industrial/trade waste is delivered to site by lorry and tipped into one of two refuse bunkers inside the tipping hall. Deliveries are typically made from Monday to Saturday morning. Waste is transferred from the bunkers by grab crane into the feed chute of each incinerator stream. Waste is only fed to the incinerator if the temperature is above 850°C. \n\nEach incinerator stream has a moving grate on which the waste is burned, with preheated air being injected from below the grate. Combustion air is drawn from the tipping hall and boiler hall to reduce odours and dust levels in these areas and fed to the furnace via an air preheater which can raise the temperature of the air up to 160°C. Two auxiliary burners, fired on gas oil, are installed halfway up each combustion chamber to maintain temperatures above the 850°C threshold. The auxiliary burners are also used to pre-heat the incinerators before start up.\n\nAmmonium hydroxide is injected into the furnaces to reduce emissions of nitrogen oxides (this technique is known as selective non-catalytic reduction or SNCR). Hot gases from the combustion chamber pass to a boiler in which steam is raised and sent to the London Road Heat Station (operated by Nottingham City Council, formerly EnviroEnergy) for supply of heat to the district heating system and generation of electricity. Flue gases leaving the boiler are cooled to about 130°C in the economiser to achieve the correct temperature for gas treatment. \n\nIncinerator bottom ash is quenched in water and collected in a residuals bunker inside the building. The silo is emptied regularly and the bottom ash is sent for metal extraction and use as a substitute aggregate. \n\nFly ash entrained within the incinerator exhaust gases, together with any accumulations of dust removed from the walls of the economiser by the shot cleaning system, is treated in the air pollution control equipment. Each incinerator stream has its own dedicated air pollution control equipment. Cooled flue gases leaving the economiser are dosed with a mixture of hydrated lime, activated carbon and recirculated reagent, in order to reduce acid gases (by reaction with the lime), and other substances such as heavy metals and hydrocarbons (by adsorption onto the activated carbon). The exhaust gases and reagent particles are then filtered in a four compartment fabric filter to remove the dust burden. The fabric filters are regularly cleaned by reverse jet pulses, and the collected end product is stored in the APC residue silo. The APC residue silo is regularly emptied and the residue used to treat industrial acidic wastes before final disposal in a suitably licensed landfill site. \n\nThe treated exhaust gases from both streams are discharged via the 91m high stack. The final emissions from the municipal waste incinerator are continuously monitored for particulate matter, sulphur dioxide, nitrogen oxides, carbon monoxide, hydrogen chloride, volatile organic compounds, nitrous oxide, carbon dioxide and ammonia prior to entry into the main stack.\n",null,null,null,null,null,null,null,null,null,"Include summary of key processes and procedures such as (but not limited to); waste reception, control rooms, grate, bed and boiler, energy & heat  generation, cooling systems, residue management, emission controls, health and safety systems, maintenance"]

{"sheet":"Contents","index":2,"n_rows":45,"n_cols":11,"rows_kept":45,"cut":false,"hidden":false,"merged":[[4,10,7,14],[8,1,8,6],[3,1,3,6],[4,1,4,6],[5,1,5,6],[6,1,6,6],[7,1,7,6],[21,1,21,6],[9,1,9,6],[10,1,10,6],[11,1,11,6],[13,1,13,6],[14,1,14,6],[15,1,15,6],[16,1,16,6],[17,1,17,6],[18,1,18,6],[19,1,19,6],[20,1,20,6],[12,1,12,6],[36,1,36,6],[22,1,22,6],[23,1,23,6],[24,1,24,6],[27,1,27,6],[28,1,28,6],[29,1,29,6],[30,1,30,6],[31,1,31,6],[32,1,32,6],[35,1,35,6],[44,0,47,9],[37,1,37,6],[38,1,38,6],[39,1,39,6],[40,1,40,6],[41,1,41,6],[42,1,42,6]]}
[{"$f":"+'Cover Page'!$B$29","v":"Annual Performance Report 2024"},null,null,null,{"$f":"+'Cover Page'!$B$33","v":"Eastcroft  EfW Site"}]
[]
["Contents",null,null,null,null,null,null,null,null,null,"Notes:"]
["Section","Subject",null,null,null,null,null,"Page ",null,null,"Section references and Page nos. to be inserted"]
[null,"Facility Information",null,null,null,null,null,1,null,null,"Sections and Subjects may require adjustment by individual operators to meet specific reporting requirements as defined in the sites Permit(s)"]
[null,"Operational Data",null,null,null,null,null,3]
[null,"Operational Summary",null,null,null,null,null,4]
[null,"Performance Form 1",null,null,null,null,null,5]
[null,"Energy Form 1",null,null,null,null,null,6]
[null,"Permit Compliance",null,null,null,null,null,7]
[null,"Improvements",null,null,null,null,null,8]
[null,"Public Liaison",null,null,null,null,null,9]
[null,"Carbon dioxide and nitrous oxide emissions",null,null,null,null,null,10]
[null,"Residue Quality ",null,null,null,null,null,11]
[null,"Emissions to Water",null,null,null,null,null,12]
[null,"Emissions to Air (periodically monitored)",null,null,null,null,null,13]
[null,"Emissions to Air (continuously monitored)",null,null,null,null,null,14]
[null,"Hydrogen Chloride emissions",null,null,null,null,null,15]
[null,"Sulphur Dioxide emissions",null,null,null,null,null,16]
[null,"Oxides of Nitrogen emissions",null,null,null,null,null,17]
[null,"Total Organic Carbon emissions",null,null,null,null,null,18]
[null,"Particulate Matter emissions",null,null,null,null,null,19]
[null,"Carbon Monoxide emissions",null,null,null,null,null,20]
[null,"Ammonia emissions",null,null,null,null,null,21]
[]
[]
["Version Control"]
["Section","Information",null,null,null,null,null,"Date"]
[1.1000000000000001,null,null,null,null,null,null,"2025-01-31"]
[]
[]
[]
[]
[]
["Distribution"]
["Copy","Name, Role",null,null,null,null,null,"No."]
[]
[]
[]
[]
[]
[]
[]
[]
["This report is required under the Industrial Emissions Directive’s Article 55(2) requirements on reporting and public information on waste incineration plants and co-incineration plants, which require the operator to produce an annual report on the functioning and monitoring of the plant and make it available to the public. "]

{"sheet":"Operational Data","index":3,"n_rows":65,"n_cols":10,"rows_kept":65,"cut":false,"hidden":false,"merged":[[5,9,7,9],[52,0,56,0],[33,1,38,1],[3,1,3,2],[7,1,19,1],[23,1,26,1],[28,1,29,1],[9,9,20,9],[21,9,25,9]]}
[{"$f":"+'Cover Page'!$B$29","v":"Annual Performance Report 2024"},null,null,null,{"$f":"+'Cover Page'!$B$33","v":"Eastcroft  EfW Site"}]
[]
["Operational Data"]
["Plant Size",200000,null,"tonnes pa",20,"MWth",null,"MWe",null,"Notes:"]
["No. of combustion lines",2,null,"No. of Turbines:",null,0,null,null,null,"* - RDF to include SRF "]
[null,null,null,null,null,null,null,null,null,"** - Combusted tonnage = tonnes delivered in period + (tonnes in bunker at start of period – tonnes in bunker at end of period), or equivalent calculation depending on plant type"]
["Waste types received","Unit","Q1","Q2","Q3","Q4","Year Total","%"]
["Household / Local Authority","tonnes",47046,40766,36140,46191,{"$f":"SUM(C8:F8)","v":170143},{"$f":"IF(G8>0,G8/$G$18,\"-\")","v":0.90192637984775559}]
["Commercial & Industrial ",null,3989,4755,3509,6248,{"$f":"SUM(C9:F9)","v":18501},9.807362015224444E-2,null,"*** - CHP plants only"]
["Hazardous ",null,null,null,null,null,0,"-",null,"**** Availability Definition: 'the availability of a line is to be calculated by the number of hours the line reported Continuously Monitored emission levels to the Regulator through the calendar year divided by the total number of hours in that year. \n\nThe overall plant availability is calculated as the Mean of all lines in the plant. For clarity this includes periods of abnormal operation.'  \n\nRationale: The primary function of an Energy from Waste facility is the disposal of waste. It follows therefore that the availability of a plant is determined by the period of time a facility spends undertaking this activity."]
["Clinical",null,null,null,null,null,0,"-"]
["Waste wood (biomass) ",null,null,null,null,null,0,"-"]
["Refuse Derived Fuel * - H'hold/LA",null,null,null,null,null,{"$f":"SUM(C13:F13)","v":0},"-"]
["Refuse Derived Fuel *  - C&I",null,null,null,null,null,0,"-"]
["Other [Please specify]",null,null,null,null,null,0,"-"]
["Other [Please specify]",null,null,null,null,null,0,"-"]
["Other [Please specify]",null,null,null,null,null,0,"-"]
["Total waste received",null,{"$f":"SUM(C8:C17)","v":51035},{"$f":"SUM(D8:D17)","v":45521},{"$f":"SUM(E8:E17)","v":39649},{"$f":"SUM(F8:F17)","v":52439},188644]
["Rejected Waste ",null,null,null,null,null,{"$f":"SUM(C19:F19)","v":0},{"$f":"IF(G19>0,G19/$G$18,\"-\")","v":"-"}]
["Unprocessed waste transferred out",null,null,null,null,null,{"$f":"SUM(C20:F20)","v":0},{"$f":"IF(G20>0,G20/$G$18,\"-\")","v":"-"}]
["Total waste combusted **",null,50548,45716,40468,52370,{"$f":"SUM(C21:F21)","v":189102}]
[null,null,null,null,null,null,null,null,null,"Password for protected cells\nA password has been set to prevent accidental  editing of cells with formulae. \nIf you still need to make an edit for some reason then the password = 1234"]
["Energy Usage / Export","Unit","Q1","Q2","Q3","Q4","Year Total","KWh/te"]
["Power Generated","MWh",null,null,null,null,{"$f":"SUM(C24:F24)","v":0},{"$f":"IF(G24>0,G24*1000/$G$21,\"-\")","v":"-"}]
["Power Exported",null,null,null,null,null,{"$f":"SUM(C25:F25)","v":0},{"$f":"IF(G25>0,G25*1000/$G$21,\"-\")","v":"-"}]
["Power Used on site",null,2844,2476,1988,2628,{"$f":"SUM(C26:F26)","v":9936},{"$f":"IF(G26>0,G26*1000/$G$21,\"-\")","v":52.543071992892727}]
["Power Imported",null,2844,2476,1988,2628,9936,{"$f":"IF(G27>0,G27*1000/$G$21,\"-\")","v":52.543071992892727}]
["Parasitic Load","%",{"$f":"IF(C24>0,1-C25/(C24+C27),\"-\")","v":"-"},{"$f":"IF(D24>0,1-D25/(D24+D27),\"-\")","v":"-"},{"$f":"IF(E24>0,1-E25/(E24+E27),\"-\")","v":"-"},{"$f":"IF(F24>0,1-F25/(F24+F27),\"-\")","v":"-"},{"$f":"IF(G24>0,1-G25/(G24+G27),\"-\")","v":"-"}]
["Thermal Energy Produced ***","MWh",112327,84517,81915,101393,{"$f":"SUM(C29:F29)","v":380152},{"$f":"IF(G29>0,G29*1000/$G$21,\"-\")","v":2010.3013188649511}]
["Thermal Energy Exported ***",null,112327,84517,81915,101393,380152,{"$f":"IF(G30>0,G30*1000/$G$21,\"-\")","v":2010.3013188649511}]
["R1 value (if applicable)","R1"]
[]
["Waste Disposal & Recovery","Unit","Q1","Q2","Q3","Q4","Year Total","% inputs"]
["APC Residues - produced","tonnes",1348,1178,920,1273,{"$f":"SUM(C34:F34)","v":4719},{"$f":"IF(G34>0,G34/$G$21,\"-\")","v":2.4954786305803216E-2}]
["IBA - produced",null,9218,8662,7265,9318,34463,{"$f":"IF(G35>0,G35/$G$21,\"-\")","v":0.18224556059692654}]
["Metals recycling",null,null,null,null,null,{"$f":"SUM(C36:F36)","v":0},"-"]
["Other",null,0,0,0,0,{"$f":"SUM(C37:F37)","v":0},"-"]
["Other",null,0,0,0,0,0,"-"]
["Other",null,0,0,0,0,0,"-"]
[]
["Raw Material Usage","Unit","Q1","Q2","Q3","Q4","Year Total","kg or Ltr /te"]
["Mains Water","ltrs",1430000,691000,2126000,767000,{"$f":"SUM(C42:F42)","v":5014000},{"$f":"IF(G42>0,G42/$G$21,\"-\")","v":26.51479095937642}]
["Other Water","ltrs",null,null,null,null,0,{"$f":"IF(G43>0,G43/$G$21,\"-\")","v":"-"}]
["Ammonia","kgs",130000,117000,98000,128000,473000,2.5012955970851709]
["Urea","kgs",null,null,null,null,{"$f":"SUM(C45:F45)","v":0},"-"]
["Activated Carbon","kgs",102000,52000,45000,62000,261000,1.380207507059682]
["Lime / hydrated lime","kgs",440000,371000,261000,309000,1381000,7.3029370392698123]
["Fuel oil","ltrs",34241,15873,67755,30337,148206,0.78373576165244152]
["Gas","cuf",null,null,null,null,0]
["Other",null,null,null,null,null,0]
[]
["Summary ","Line/Unit","Q1","Q2","Q3","Q4","Year Total",null,"Hrs in year "]
["Availability of waste combustion by line, hrs ****",{"$f":"+B5","v":2},2165,1886,1726,2153,{"$f":"SUM(C53:F53)","v":7930},{"$f":"+G53/$I$53","v":0.90277777777777779},8784,"Change this figure to 8784 in a leap year"]
[null,2,2118.5,1897,1731,2134.5,7881,{"$f":"+G54/$I$53","v":0.89719945355191255}]
[null,3,null,null,null,null,0,0]
[null,4,null,null,null,null,0,0]
[null,5,null,null,null,null,{"$f":"SUM(C57:F57)","v":0},0]
["Overall Availability, mean avg. of all lines, hrs",null,null,null,null,null,{"$f":"AVERAGE(G53:G57)","v":3162.2},0.35999544626593805]
["Hours of turbine operations, hrs",1,null,null,null,null,0,0]
["Hours of turbine operations, hrs",2,null,null,null,null,0,0]
["Hours of heat / steam export",null,{"$f":"C53+C54","v":4283.5},{"$f":"D53+D54","v":3783},3457,4287.5,15811,{"$f":"IF(B61>0,G60/I53,\"n/a\")","v":"n/a"}]
["Net Calorific Value of waste","MJ/kg",8.1999999999999993,8.1,8,8.3000000000000007,8.1999999999999993]
["Abnormal Events","qty.",null,null,null,null,0,{"$f":"IF(G63>0,\"yes\",\"no\")","v":"no"}]
["Abnormal operation","hours",null,null,null,null,0,{"$f":"+(G64)/I53","v":0}]
["Permit Breaches","qty.",18,6,12,6,42,{"$f":"IF(G65>0,\"yes\",\"no\")","v":"yes"}]

{"sheet":"Operational Summary","index":4,"n_rows":73,"n_cols":11,"rows_kept":73,"cut":false,"hidden":false,"merged":[[70,1,70,8],[71,1,71,8],[72,1,72,8],[30,0,51,8],[4,10,13,13],[30,10,39,13],[54,1,54,8],[53,1,53,8],[4,0,26,8],[69,1,69,8],[54,10,64,13],[63,1,63,8],[59,1,59,8],[55,1,55,8],[56,1,56,8],[57,1,57,8],[58,1,58,8],[68,1,68,8],[64,1,64,8],[65,1,65,8],[66,1,66,8],[67,1,67,8],[60,1,60,8],[61,1,61,8],[62,1,62,8]]}
[{"$f":"+'Cover Page'!$B$29","v":"Annual Performance Report 2024"},null,null,null,{"$f":"+'Cover Page'!$B$33","v":"Eastcroft  EfW Site"}]
[]
["Summary of Plant Operations and Maintenance during the reporting year",null,null,null,null,null,null,null,null,null,"Notes:"]
[]
["During 2024 the facility ran for 15,811 hours across the 2 lines representing an availability of 90% with 188,644 tonnes delivered to site compared to a permit limit of 200,000 tonnes per annum. Nearly all of this waste was delivered by the local authorities of Nottingham and the surrounding area and most other wastes being categorised as municipal (Chapter 20 of the List of Wastes Regulations). \n\nThe facility submitted 36 schedule notification during the year describing 42 exceedences of an emission limit, 30 of which were minor TOC exceedances caused by gas cylinder explosions in the boiler with the remainder representing acid gas emissions caused by high sulphur and/or chlorine wastes. Environmental impact modelling of these events demonstrated no measurable environmental effect or exceedance of a relevant air quality threshold.\n\nThe plant provided 380 GWh of energy in the form of steam and hot water to the Nottingham City Council (formerly EnviroEnergy) facility who operate a combined heat and power station, providing electricity to private customers, the national grid and providing heating to households and commercial premises through their district heating system. Eastcroft receives all electrical supply and water for the process from the Nottingham City Council facility. \n\nThe main period of downtime related to a planned maintenance period within where routine maintenance that cannot be undertaken whilst the plant is operational took place. Several incidents of plant downtime to rectify damage to the grates and refractory caused by gas cylinder explosions occurred during the year .Further modifications and optimisation to the combustion and SNCR system were undertaken throughout the year.",null,null,null,null,null,null,null,null,null,"Include summary of key operational and/or maintenance activity undertaken in the year, such as any major component upgrades and/or replacements "]
[]
[]
[]
[]
[]
[]
[]
[]
[]
[]
[]
[]
[]
[]
[]
[]
[]
[]
[]
[]
[]
[]
[]
["Summary of Residue Handling for the reporting year"]
[]
["Incinerator Bottom Ash (IBA) is sampled 4 times per year for permit compliance purposes, in particular for Total Organic Content where the permit has a limit of 3%. Full compliance was achieved during 2023; no values were above 3% with an average value of 0.85% achieved. \n\nAdditional testing of IBA is undertaken in order to correctly classify the IBA. 24 samples (2 per month) were taken in 2024 to assess for any hazardous content within the IBA. During 2024 all 24 sample results were returned confirming the classification of the IBA as non-hazardous. \n\nAll metals within the IBA are sent along with the non-hazardous IBA to a third party company who operate a permitted facility dedicated to management of bottom ash. Metals are segregated and sent for recycling while the remaining incinerator bottom ash is used as a substitute aggregate material for use within the construction industry.\n\nAir Pollution Control Residues (APCr) formed from the cleaning of the flue gases are also analysed on a quarterly basis, albeit with no limits set within the permit. The APCr is tankered to a permitted treatment site where the material is used to neutralise highly acidic wastes before the resulting residue is sent for disposal.\t\t\t\t\t\t\t\n\t\t\t\t\t\t\t\t\n\t\t\t\t\t\t\t\t\n\t\t\t\t\t\t\t\t\n\t\t\t\t\t\t\t\t\n\t\t\t\t\t\t\t\t\n\t\t\t\t\t\t\t\t\n\t\t\t\t\t\t\t\t\n\t\t\t\t\t\t\t\t\n\t\t\t\t\t\t\t\t\n\t\t\t\t\t\t\t\t\n\t\t\t\t\t\t\t\t\n\t\t\t\t\t\t\t\t\n\t\t\t\t\t\t\t\t\n\t\t\t\t\t\t\t\t\n\t\t\t\t\t\t\t\t\n\t\t\t\t\t\t\t\t\n\t\t\t\t\t\t\t\t\n\t\t\t\t\t\t\t\t\n\t\t\t\t\t\t\t\t\n\t\t\t\t\t\t\t\t\n\t\t\t\t\t\t\t\t",null,null,null,null,null,null,null,null,null,"Include in here a summary of residue handling regimes and destinations "]
[]
[]
[]
[]
[]
[]
[]
[]
[]
[]
[]
[]
[]
[]
[]
[]
[]
[]
[]
[]
[]
[]
[{"$f":"+'Cover Page'!C39","v":2024},"Plant shut-downs"]
["Date","Reason for shut-down",null,null,null,null,null,null,null,null,"Provide a very brief reason for plant shut-down e.g. \"Shut-down prior to major outage\"; \"Emergency shut-down due to boiler tube leak\"\n\nThere is no need to include periods of hot-standby here (e.g. to clear feed chute hopper blockages).\n\nFor clinical waste incinerators which require regular shut-downs for boiler cleaning, there is no need to record these here. "]
["2024-01-01","Grate repairs due to gas cylinder explosion"]
["2024-01-05","ID fan trip"]
["2024-02-04","Clearance of blocked ducting"]
["2024-03-11","Clearance of blocked ducting"]
["2024-03-14","Repairs to the baghouse"]
["2024-04-17","Boiler Repairs"]
["2024-04-20","Boiler Repairs"]
["2024-05-23","Boiler Repars"]
["2024-06-19","Annual Outage"]
["2024-08-21","Steam Leak at Heat Station"]
["2024-09-10","Issues with ID fan inverters"]
["2024-09-11","Issues with ID fan inverters"]
["2024-09-14","Issues with ID fan inverters"]
["2024-11-06","Grate repairs due to gas cylinder explosion"]
["2026-12-12","Boiler repairs"]
["2024-12-23","Boiler repairs"]
["2024-12-26","Boiler repairs"]
["2024-12-28","Boiler repairs"]

{"sheet":"Perf. Form 1","index":5,"n_rows":54,"n_cols":10,"rows_kept":54,"cut":false,"hidden":false,"merged":[[9,0,9,9],[10,0,10,1],[10,2,10,3],[10,4,10,5],[10,6,10,7],[10,8,10,9],[2,0,2,4],[2,6,2,8],[3,1,3,4],[5,3,5,4],[5,6,5,7],[8,0,8,1],[8,2,8,3],[8,4,8,5],[8,6,8,7],[8,8,8,9],[11,0,11,1],[11,2,11,3],[11,4,11,5],[11,6,11,7],[11,8,11,9],[12,0,12,1],[12,2,12,3],[12,4,12,5],[12,6,12,7],[12,8,12,9],[15,0,15,1],[15,2,15,3],[15,4,15,5],[15,6,15,7],[15,8,15,9],[16,0,16,9],[13,0,13,1],[13,2,13,3],[13,4,13,5],[13,6,13,7],[13,8,13,9],[14,0,14,3],[14,4,14,5],[14,6,14,7],[14,8,14,9],[17,0,17,1],[17,2,17,3],[17,4,17,5],[17,6,17,7],[17,8,17,9],[18,0,18,1],[18,2,18,3],[18,4,18,5],[18,6,18,7],[18,8,18,9],[19,0,19,1],[19,2,19,3],[19,4,19,5],[19,6,19,7],[19,8,19,9],[20,0,20,1],[20,2,20,3],[20,4,20,5],[20,6,20,7],[20,8,20,9],[21,0,21,1],[21,2,21,3],[21,4,21,5],[21,6,21,7],[21,8,21,9],[22,0,22,3],[22,4,22,5],[22,6,22,7],[22,8,22,9],[31,0,31,3],[31,7,31,8],[32,0,32,3],[32,4,32,5],[32,7,32,8],[33,0,33,3],[33,4,33,5],[33,7,33,8],[23,0,23,3],[23,4,23,5],[23,6,23,7],[23,8,23,9],[25,0,25,9],[26,0,28,9],[36,0,36,3],[36,4,36,5],[36,7,36,8],[37,0,37,3],[37,4,37,5],[37,7,37,8],[34,0,34,3],[34,4,34,5],[34,7,34,8],[35,0,35,3],[35,4,35,5],[35,7,35,8],[47,0,47,1],[49,0,49,9],[50,0,51,9],[38,0,38,9],[39,0,40,9],[43,0,43,1],[43,2,43,9],[45,0,45,1],[46,0,46,1]]}
[{"$f":"+'Cover Page'!C39","v":2024}," Annual Reporting Performance Form 1"]
[]
[{"$f":"+'Cover Page'!B31","v":"Permit EPR/SP3034SN"},null,null,null,null,"Operator: ",{"$f":"+'Cover Page'!B37","v":"WasteNotts (Reclamation) Limited"}]
["Facility:",{"$f":"+'Cover Page'!B33:I33","v":"Eastcroft  EfW Site"},null,null,null,"Form:","Performance 1"]
[]
["Reporting  Period from: ",null,null,"2024-01-01",null,"to:","2024-12-31"]
[]
[{"$f":"+A1","v":2024},"Annual Reporting of Waste Disposal and Recovery"]
["Waste Description",null,"Disposal Route(s)",null,"Disposal Tonnes",null,"Recovery Tonnes",null,"% / tonne of waste incinerated"]
["1) Hazardous Wastes"]
["APC Residues",null,"D3",null,4719,null,null,null,{"$f":"IF((E11+G11)>0,(E11+G11)/'Operational Data'!$G$21, \"-\")","v":2.4954786305803216E-2}]
["IBA",null,null,null,null,null,null,null,{"$f":"IF((E12+G12)>0,(E12+G12)/'Operational Data'!$G$21, \"-\")","v":"-"}]
[null,null,null,null,null,null,null,null,{"$f":"IF((E13+G13)>0,(E13+G13)/'Operational Data'!$G$21, \"-\")","v":"-"}]
[null,null,null,null,null,null,null,null,{"$f":"IF((E14+G14)>0,(E14+G14)/'Operational Data'!$G$21, \"-\")","v":"-"}]
["Total Hazardous Waste",null,null,null,{"$f":"SUM(E11:F14)","v":4719},null,{"$f":"SUM(G11:H14)","v":0},null,{"$f":"IF((E15+G15)>0,(E15+G15)/'Operational Data'!$G$21, \"-\")","v":2.4954786305803216E-2}]
[]
["2) Non-Hazardous Wastes"]
["IBA",null,"R05",null,null,null,34463,null,{"$f":"IF((E18+G18)>0,(E18+G18)/'Operational Data'!$G$21, \"-\")","v":0.18224556059692654}]
["Ferrous Metal",null,null,null,null,null,null,null,{"$f":"IF((E19+G19)>0,(E19+G19)/'Operational Data'!$G$21, \"-\")","v":"-"}]
["Process Water",null,null,null,null,null,null,null,{"$f":"IF((E20+G20)>0,(E20+G20)/'Operational Data'!$G$21, \"-\")","v":"-"}]
[null,null,null,null,null,null,null,null,{"$f":"IF((E21+G21)>0,(E21+G21)/'Operational Data'!$G$21, \"-\")","v":"-"}]
[null,null,null,null,null,null,null,null,{"$f":"IF((E22+G22)>0,(E22+G22)/'Operational Data'!$G$21, \"-\")","v":"-"}]
["Total Non-Hazardous Waste",null,null,null,{"$f":"SUM(E18:F22)","v":0},null,{"$f":"SUM(G18:H22)","v":34463},null,{"$f":"IF((E23+G23)>0,(E23+G23)/'Operational Data'!$G$21, \"-\")","v":0.18224556059692654}]
["TOTAL WASTE",null,null,null,{"$f":"+E23+E15","v":4719},null,{"$f":"+G23+G15","v":34463},null,{"$f":"IF((E24+G24)>0,(E24+G24)/'Operational Data'!$G$21, \"-\")","v":0.20720034690272973}]
[]
["Operator’s comments :"]
[]
[]
[]
[]
[{"$f":"+A1","v":2024},"Annual Reporting of Water and Other Raw Material Usage"]
["Raw Material",null,null,null,"Usage",null,"Unit","Specific Usage",null,"Unit"]
["Mains Water",null,null,null,{"$f":"+'Operational Data'!G42/1000","v":5014},null,"m3",{"$f":"IF(E33>0,E33/'Operational Data'!$G$21,\"-\")","v":2.6514790959376422E-2},null,"m3/te"]
["Total Water",null,null,null,{"$f":"+'Operational Data'!G43+'Operational Data'!G42/1000","v":5014},null,"m3",{"$f":"IF(E34>0,E34/'Operational Data'!$G$21,\"-\")","v":2.6514790959376422E-2},null,"m3/te"]
["Urea / Ammonia",null,null,null,{"$f":"+'Operational Data'!G44","v":473000},null,"kg",{"$f":"IF(E35>0,E35/'Operational Data'!$G$21,\"-\")","v":2.5012955970851709},null,"kg/te"]
["Activated Carbon",null,null,null,{"$f":"+'Operational Data'!G46","v":261000},null,"kg",{"$f":"IF(E36>0,E36/'Operational Data'!$G$21,\"-\")","v":1.380207507059682},null,"kg/te"]
["Lime / hydrated lime / Sodium Bicarb.",null,null,null,{"$f":"+'Operational Data'!G47","v":1381000},null,"kg",{"$f":"IF(E37>0,E37/'Operational Data'!$G$21,\"-\")","v":7.3029370392698123},null,"kg/te"]
[]
["Operator’s comments :"]
[]
[]
[]
[{"$f":"+A31","v":2024},"Annual Reporting of other performance indicators "]
["Parameter",null,"Results by Line"]
[null,null,"A1","A2","A3","A4","A5",null,"Turbine 1","Turbine 2"]
["Operating hours for the year, hours",null,7930,7881]
["Number of periods of abnormal operation, qty."]
["Cumulative hours of abnormal operation for this year, hours"]
[]
["Operator’s comments :"]
[]
[]
[]
["Signed: ",null,null,null,null,null,"Date:","2025-01-31"]

{"sheet":"Energy Form 1","index":6,"n_rows":29,"n_cols":8,"rows_kept":29,"cut":false,"hidden":false,"merged":[[2,6,2,8],[4,1,4,4],[6,3,6,4],[6,6,6,7],[8,0,8,2],[8,3,8,4],[8,6,8,8],[9,0,9,2],[9,3,9,4],[9,6,9,8],[10,0,10,2],[10,3,10,4],[10,6,10,8],[11,0,11,2],[11,3,11,4],[11,6,11,8],[12,0,12,2],[12,3,12,4],[12,6,12,8],[13,0,13,2],[13,3,13,4],[13,6,13,8],[14,0,14,2],[14,3,14,4],[14,6,14,8],[15,0,15,2],[15,3,15,4],[15,6,15,8],[17,0,17,8],[18,0,24,8]]}
[{"$f":"+'Cover Page'!C39","v":2024}," Annual Reporting of Energy Usage/Export"]
[]
[{"$f":"+'Cover Page'!B31","v":"Permit EPR/SP3034SN"},null,null,null,null,"Operator: ",{"$f":"+'Cover Page'!B37","v":"WasteNotts (Reclamation) Limited"}]
[]
["Facility:",{"$f":"+'Cover Page'!B33:I33","v":"Eastcroft  EfW Site"},null,null,null,"Form:","Energy 1"]
[]
["Reporting  Period from: ",null,null,{"$f":"+'Perf. Form 1'!D6:E6","v":"2024-01-01"},null,"to:",{"$f":"+'Perf. Form 1'!G6:H6","v":"2024-12-31"}]
[]
["Energy Source",null,null,"Energy Usage",null,"Unit","Specific Usage (KWh/tonne incinerated"]
["Electricity Produced",null,null,{"$f":"+'Operational Data'!G24","v":0},null,"MWh",{"$f":"+'Operational Data'!H24","v":"-"}]
["Electricity Imported   ",null,null,{"$f":"+'Operational Data'!G27","v":9936},null,"MWh",{"$f":"+'Operational Data'!H27","v":52.543071992892727}]
["Electricity Exported",null,null,{"$f":"+'Operational Data'!G25","v":0},null,"MWh",{"$f":"+'Operational Data'!H25","v":"-"}]
["Gas Oil",null,null,119.3,null,"tonnes"]
["Steam/hot water exported",null,null,{"$f":"+'Operational Data'!G30","v":380152},null,"GWh",{"$f":"+'Operational Data'!H30","v":2010.3013188649511}]
[]
[]
[]
["Operator’s comments :"]
[]
[]
[]
[]
[]
[]
[]
[]
[]
[]
["Signed: ",null,null,null,null,null,"Date:","2025-01-31"]

{"sheet":"Permit Compliance","index":7,"n_rows":67,"n_cols":12,"rows_kept":67,"cut":false,"hidden":false,"merged":[[72,4,72,8],[9,0,9,1],[9,2,9,4],[9,5,9,8],[10,0,10,1],[10,2,10,4],[10,5,10,8],[11,0,11,1],[11,2,11,4],[11,5,11,8],[12,0,12,1],[12,2,12,4],[12,5,12,8],[13,0,13,1],[13,2,13,4],[13,5,13,8],[7,0,7,1],[7,2,7,8],[8,0,8,1],[8,2,8,4],[8,5,8,8],[71,1,71,3],[71,4,71,6],[71,7,71,9],[68,1,68,3],[68,4,68,6],[68,7,68,9],[69,1,69,3],[69,4,69,6],[69,7,69,9],[70,1,70,3],[70,4,70,6],[70,7,70,9],[66,1,66,3],[66,4,66,6],[66,7,66,9],[67,1,67,3],[67,4,67,6],[67,7,67,9],[19,1,19,2],[19,3,19,5],[8,11,20,11],[65,0,65,10],[18,0,18,10],[14,0,14,1],[14,2,14,4],[63,0,63,8],[19,7,19,8],[14,5,14,8],[15,0,15,1],[16,2,16,4],[16,5,16,8],[15,2,15,4],[15,5,15,8],[16,0,16,1]]}
[{"$f":"+'Cover Page'!$B$29","v":"Annual Performance Report 2024"},null,null,null,{"$f":"+'Cover Page'!$B$33","v":"Eastcroft  EfW Site"}]
[]
["Summary of Permit Compliance"]
[]
["Compliance with permit limits for continuously monitored pollutants"]
[]
["The plant met its emission limits as shown in the table below:"]
["Substance",null,"Percentage time compliant during operationNote 1",null,null,null,null,null,null,null,null,"Notes:"]
[null,null,"Half-hourly limit",null,null,"Daily limit",null,null,null,null,null,"Note 1: Please report to 2 decimal places, i.e. xx.xx%\n\nNote 2: Please enter into this table any permit non-compliances that the EA has given a CCS score for. Please also enter any other non-compliances which you have notified to the EA (e.g. ELV exceedances) but which have not yet been assessed by the EA. There is no need to enter any notifications which were subsequently assessed by the EA not to be permit breaches.  \n\nNote 3: Please enter information here (rather than just referencing the notifications that were sent to the EA) including where relevant the incineration line reference, pollutant and value of the measured result for any ELV exceedances.   \n\n"]
["Particulates",null,1,null,null,1]
["Oxides of nitrogen",null,1,null,null,1]
["Sulphur dioxide",null,0.99990000000000001,null,null,1]
["Carbon monoxide",null,"\n100.00% 95% of 10-min averages",null,null,1]
["Total organic carbon",null,0.99909999999999999,null,null,1]
["Hydrogen chloride",null,0.99980000000000002,null,null,0.99539999999999995]
["Hydrogen fluoride",null,1,null,null,1]
[null,null,0.99980000000000002,null,null,0.99929999999999997]
[]
["Summary of non-compliances under the permit Note 2"]
["Date","Summary of non-compliance Note 3",null,"Reason ",null,null,"Measures taken to prevent reoccurrence","CCS score if applicable*"]
[null,null,null,null,null,null,null,"Impact","Root cause"]
["2024-01-14","1/2 Hourly TOC of 35.3 mg/Nm3 against an ELV of 20 mg/Nm3",null,"Gas cylinder  explosion",null,null,"Training, Increased inspections, work with LAs and public organisations",0.1]
["2024-01-18","1/2 Hourly TOC of 28.0 mg/Nm3 against an ELV of 20 mg/Nm3",null,"Gas cylinder  explosion",null,null,"Training, Increased inspections, work with LAs and public organisations"]
["2024-01-27","1/2 Hourly TOC of 33.9 mg/Nm3 against an ELV of 20 mg/Nm3",null,"Gas cylinder  explosion",null,null,"Training, Increased inspections, work with LAs and public organisations"]
["2024-01-30","1/2 Hourly TOC of 21.4 mg/Nm3 against an ELV of 20 mg/Nm3",null,"Gas cylinder  explosion",null,null,"Training, Increased inspections, work with LAs and public organisations"]
["2024-01-31","1/2 Hourly TOC of 25.9  mg/Nm3 against an ELV of 20 mg/Nm3",null,"Gas cylinder  explosion",null,null,"Training, Increased inspections, work with LAs and public organisations"]
["2024-01-31","1/2 Hourly TOC of 24.3  mg/Nm3 against an ELV of 20 mg/Nm3",null,"Gas cylinder  explosion",null,null,"Training, Increased inspections, work with LAs and public organisations"]
["2024-01-31","1/2 Hourly TOC of 27.2  mg/Nm3 against an ELV of 20 mg/Nm3",null,"Gas cylinder  explosion",null,null,"Training, Increased inspections, work with LAs and public organisations"]
["2024-02-05","1/2 Hourly TOC of 25.3  mg/Nm3 against an ELV of 20 mg/Nm3",null,"Gas cylinder  explosion",null,null,"Training, Increased inspections, work with LAs and public organisations"]
["2024-02-08","1/2 Hourly TOC of 22.8  mg/Nm3 against an ELV of 20 mg/Nm3",null,"Gas cylinder  explosion",null,null,"Training, Increased inspections, work with LAs and public organisations"]
["2024-02-13","1/2 Hourly TOC of 38.3 mg/Nm3 against an ELV of 20 mg/Nm3",null,"Gas cylinder  explosion",null,null,"Training, Increased inspections, work with LAs and public organisations"]
["2024-02-17","1/2 Hourly TOC of 30.1 mg/Nm3 against an ELV of 20 mg/Nm3",null,"Gas cylinder  explosion",null,null,"Training, Increased inspections, work with LAs and public organisations"]
["2024-03-10","1/2 Hourly TOC of 35.8 mg/Nm3 against an ELV of 20 mg/Nm3",null,"Gas cylinder  explosion",null,null,"Training, Increased inspections, work with LAs and public organisations"]
["2024-03-10","1/2 Hourly TOC of 23.5  mg/Nm3 against an ELV of 20 mg/Nm3",null,"Gas cylinder  explosion",null,null,"Training, Increased inspections, work with LAs and public organisations"]
["2020-03-25","1/2 Hourly HCl of 268.7 mg/Nm3 against an ELV of 60 mg/Nm3",null,"Contaminated waste",null,null,"Training, Increased inspections, work with LAs and public organisations",0.1]
["2024-03-25","1/2 Hourly SO2 of 280.2 mg/Nm3 against an ELV of 200 mg/Nm3",null,"Contaminated waste",null,null,"Training, increased inspections, work with waste suppliers to identify problem streams",0.1]
["2024-03-25","Daily HCl of 9.77 mg/Nm3 against an ELV of 8 mg/Nm3",null,"Contaminated waste",null,null,"Training, increased inspections, work with waste suppliers to identify problem streams",0.1]
["2024-03-27","1/2 Hourly HCl of 112.8 mg/Nm3 against an ELV of 60 mg/Nm3",null,"Contaminated waste",null,null,"Training, increased inspections, work with waste suppliers to identify problem streams"]
["2024-03-27","1/2 Hourly SO2 of 226.1 mg/Nm3 against an ELV of 200 mg/Nm3",null,"Contaminated waste",null,null,"Training, increased inspections, work with waste suppliers to identify problem streams"]
["2024-04-01","1/2 Hourly HCl of 188.9 mg/Nm3 against an ELV of 60 mg/Nm3",null,"Contaminated waste",null,null,"Training, increased inspections, work with waste suppliers to identify problem streams",0.1]
["2024-04-12","1/2 Hourly TOC of 34.6 mg/Nm3 against an ELV of 20 mg/Nm3",null,"Gas cylinder  explosion",null,null,"Training, Increased inspections, work with LAs and public organisations",0.1]
["2024-04-14","1/2 Hourly TOC of 32.0 mg/Nm3 against an ELV of 20 mg/Nm3",null,"Gas cylinder  explosion",null,null,"Training, Increased inspections, work with LAs and public organisations"]
["2024-04-15","1/2 Hourly TOC of 31.0 mg/Nm3 against an ELV of 20 mg/Nm3",null,"Gas cylinder  explosion",null,null,"Training, Increased inspections, work with LAs and public organisations"]
["2024-05-22","1/2 Hourly TOC of 27.8 mg/Nm3 against an ELV of 20 mg/Nm3",null,"Gas cylinder  explosion",null,null,"Permit variation submission, training, increased inspections, work with Las, public organisations and other waste companies"]
["2024-06-11","1/2 Hourly HCl of 112.4 mg/Nm3 against an ELV of 60 mg/Nm3",null,"Contaminated waste",null,null,"Training, increased inspections, work with waste suppliers to identify problem streams"]
["2024-08-05","1/2 Hourly TOC of 26.3 mg/Nm3 against an ELV of 20 mg/Nm3",null,"Gas cylinder  explosion",null,null,"Permit variation submission, training, increased inspections, work with Las, public organisations and other waste companies"]
["2024-08-20","1/2 Hourly SO2 of 315 mg/Nm3 against an ELV of 200 mg/Nm3",null,"Contaminated waste",null,null,"Training, increased inspections, work with waste suppliers to identify problem streams",0.1]
["2024-08-20","1/2 Hourly HCl of 211.2 mg/Nm3 against an ELV of 60 mg/Nm3",null,"Contaminated waste",null,null,"Training, increased inspections, work with waste suppliers to identify problem streams",0.1]
["2024-08-20","1/2 Hourly HCl of 66.1 mg/Nm3 against an ELV of 60 mg/Nm3",null,"Contaminated waste",null,null,"Training, increased inspections, work with waste suppliers to identify problem streams"]
["2024-08-20","1/2 Hourly HCl of 160.9 mg/Nm3 against an ELV of 60 mg/Nm3",null,"Contaminated waste",null,null,"Training, increased inspections, work with waste suppliers to identify problem streams"]
["2024-08-20","Daily HCl of 8.86 mg/Nm3 against an ELV of 8 mg/Nm3",null,"Contaminated waste",null,null,"Training, increased inspections, work with waste suppliers to identify problem streams",0.1]
["2024-08-20","Daily HCl of 9.4 mg/Nm3 against an ELV of 8 mg/Nm3",null,"Contaminated waste",null,null,"Training, increased inspections, work with waste suppliers to identify problem streams"]
["2024-08-29","1/2 Hourly TOC of 22.2 mg/Nm3 against an ELV of 20 mg/Nm3",null,"Gas cylinder  explosion",null,null,"Permit variation submission, training, increased inspections, work with Las, public organisations and other waste companies",0.1]
["2024-09-01","1/2 Hourly TOC of 29.5 mg/Nm3 against an ELV of 20 mg/Nm3",null,"Gas cylinder  explosion",null,null,"Permit variation submission, training, increased inspections, work with Las, public organisations and other waste companies"]
["2024-09-09","1/2 Hourly TOC of 26.8 mg/Nm3 against an ELV of 20 mg/Nm3",null,"Gas cylinder  explosion",null,null,"Permit variation submission, training, increased inspections, work with Las, public organisations and other waste companies"]
["2024-09-11","1/2 Hourly TOC of 29.5 mg/Nm3 against an ELV of 20 mg/Nm3",null,"Gas cylinder  explosion",null,null,"Permit variation submission, training, increased inspections, work with Las, public organisations and other waste companies"]
["2024-09-28","1/2 Hourly TOC of 20.4 mg/Nm3 against an ELV of 20 mg/Nm3",null,"Gas cylinder  explosion",null,null,"Permit variation submission, training, increased inspections, work with Las, public organisations and other waste companies"]
["2024-10-10","1/2 Hourly TOC of 24.0 mg/Nm3 against an ELV of 20 mg/Nm3",null,"Gas cylinder  explosion",null,null,"Permit variation submission, training, increased inspections, work with Las, public organisations and other waste companies"]
["2024-10-31","1/2 Hourly TOC of 20.7 mg/Nm3 against an ELV of 20 mg/Nm3",null,"Gas cylinder  explosion",null,null,"Permit variation submission, training, increased inspections, work with Las, public organisations and other waste companies"]
["2024-11-02","1/2 Hourly TOC of 20.7 mg/Nm3 against an ELV of 20 mg/Nm3",null,"Gas cylinder  explosion",null,null,"Permit variation submission, training, increased inspections, work with Las, public organisations and other waste companies"]
["2024-11-06","1/2 Hourly TOC of 34.2 mg/Nm3 against an ELV of 20 mg/Nm3",null,"Gas cylinder  explosion",null,null,"Permit variation submission, training, increased inspections, work with Las, public organisations and other waste companies"]
["2024-11-17","1/2 Hourly TOC of 21.8 mg/Nm3 against an ELV of 20 mg/Nm3",null,"Gas cylinder  explosion",null,null,"Permit variation submission, training, increased inspections, work with Las, public organisations and other waste companies"]
["2024-12-11","1/2 Hourly TOC of 29.3 mg/Nm3 against an ELV of 20 mg/Nm3",null,"Gas cylinder  explosion",null,null,"Permit variation submission, training, increased inspections, work with Las, public organisations and other waste companies"]
["*If the Environment Agency (EA) has given a Compliance Classification Scheme (CCS) score due to a permit non-compliance it should be entered here (CCS4 = No impact; CCS3 = Minor impact; CCS2 = Significant impact; CCS1 = Major impact). If the EA has not yet assessed a non-compliance which you have notified to them, these columns should be left blank. Enter N/A if no score was given for the root cause.  "]
[]
["Summary of any complaints received and actions to taken to resolve them."]
["Date","Summary of complaint [including Line/Reference]",null,null,"Reason (including whether substantiated by the operator or the EA)",null,null,"Measures taken to prevent reoccurrence"]

{"sheet":"Improvements","index":8,"n_rows":39,"n_cols":5,"rows_kept":39,"cut":false,"hidden":false,"merged":[[37,0,37,8],[38,0,47,8],[4,0,4,8],[5,0,13,8],[15,0,15,8],[16,0,24,8],[26,0,26,8],[27,0,35,8]]}
[{"$f":"+'Cover Page'!$B$29","v":"Annual Performance Report 2024"},null,null,null,{"$f":"+'Cover Page'!$B$33","v":"Eastcroft  EfW Site"}]
[]
["Summary of Plant Improvements"]
[]
["Summary of any efficiency improvements that have been completed within the year."]
["LED lighting replacement ongoing. Blast cooler inverters installed, Filter bags changed, compressor optimiser upgraded."]
[]
[]
[]
[]
[]
[]
[]
[]
[]
["Summary of any permit improvement conditions that have been completed within the year and the resulting environmental benefits."]
[]
[]
[]
[]
[]
[]
[]
[]
[]
[]
["Summary of any changes to the plant or operating techniques which required a variation to the permit and a summary of the resulting environmental impact."]
[]
[]
[]
[]
[]
[]
[]
[]
[]
[]
["Summary of any other improvements made to the plant or planned to be made and a summary of the resulting environmental benefits."]
["Second set of ports for SNCR nozzels added to allow greater control of NOx during OTNOC."]

{"sheet":"Public Liasion","index":9,"n_rows":29,"n_cols":5,"rows_kept":29,"cut":false,"hidden":false,"merged":[[16,0,16,1],[16,2,16,8],[5,0,5,1],[5,2,5,8],[6,0,7,1],[6,2,7,8],[8,0,9,1],[8,2,9,8],[10,0,11,1],[10,2,11,8],[12,0,13,1],[12,2,13,8],[15,0,15,8],[17,0,18,1],[17,2,18,8],[19,0,20,1],[19,2,20,8],[21,0,22,1],[21,2,22,8],[23,0,24,1],[23,2,24,8],[25,0,26,1],[25,2,26,8],[28,0,28,8]]}
[{"$f":"+'Cover Page'!$B$29","v":"Annual Performance Report 2024"},null,null,null,{"$f":"+'Cover Page'!$B$33","v":"Eastcroft  EfW Site"}]
[]
["Details of Public & Stakeholder Liaison"]
[]
["Summary of events held during the reporting year."]
["Date",null,"Description"]
["2025-01-17",null,"Biannial Community Liaison Group Meeting"]
[]
["2025-09-04",null,"Biannial Community Liaison Group Meeting"]
[]
[]
[]
[]
[]
[]
["List of events planned for next year"]
["Date",null,"Description"]
["2025-01-01",null,"Biannial Community Liaison Group Meeting"]
[]
["2025-09-01",null,"Biannial Community Liaison Group Meeting"]
[]
[]
[]
[]
[]
[]
[]
[]
["If you wish to be involved in the public liasion programme, please contact info.eastcroft@fccenvironment.co.uk 0115 9869505 or visit https://eastcroft.fccenvironment.co.uk/contact-us/ "]

{"sheet":"CO2 N2O","index":10,"n_rows":26,"n_cols":6,"rows_kept":26,"cut":false,"hidden":false,"merged":[[22,2,22,3],[25,1,25,3],[4,0,4,3],[9,0,9,3],[17,0,17,3],[13,0,13,3],[12,0,12,1],[8,2,8,3],[11,2,11,3],[16,2,16,3],[19,2,19,3]]}
[{"$f":"+'Cover Page'!$B$29","v":"Annual Performance Report 2024"},null,{"$f":"+'Cover Page'!$B$33","v":"Eastcroft  EfW Site"}]
[]
["Carbon dioxide emissions and biogenic content of waste inputs",null,null,null,null,"Notes:"]
[]
["Carbon dioxide emissions (all types of plant)"]
[null,"Annual mass of carbon dioxide released","tonnes ",193801.2]
[null,"Annual mass of carbon dioxide released per tonne of waste burned","t CO2 / t waste ",1.06]
[null,"Annual mass of carbon dioxide released per MWh of energy exported","t CO2 / MWh export ",0.51]
[null,"Description of how annual carbon dioxide mass emission has been calculated. \nSee Note 1","Calibrated CEMs and flow meter",null,null,"Note 1: All permits require operators to continuously monitor CO2 to EN14181 and flow to BS EN 16911-2 (unless otherwise agreed in writing). Operators must therefore use the results from these instruments to calculate their annual CO2 emissions. Where an operator does not have a flow meter calibrated to BS EN 16911-2, the averaged flow measurement from that year's periodic monitoring can be used instead. If the plant does not have calibrated CO2 CEMS, a suitably justified emissions factor can be used."]
["Nitrous oxide emissions (only plants which use ammonia or urea to abate NOx emissions)"]
[null,"Annual mass emissions of nitrous oxide","tonnes N2O",1.02]
[null,"Description of how annual nitrous oxide mass emission has been calculated\nSee Note 2","Calibrated CEMs and flow meter",null,null,"Note 2: All permits require operators to continuously monitor N2O to EN14181 and flow to BS EN 16911-2, unless otherwise agreed in writing. Operators must therefore use the results from these instruments to calculate their annual N2O emissions. Where an operator does not have a flow meter calibrated to BS EN 16911-2, the averaged flow measurement from periodic monitoring can be used instead. If the plant does not have calibrated N2O CEMS, data from periodic monitoring or a suitably justified emissions factor can be used instead."]
["Total annual carbon dioxide + nitrous oxide emissions. \nSee Note 3. ",null,"tonnes CO2e",194071,null,"Note 3: Total annual carbon dioxide and nitrous oxide emissions reported as carbon dioxide equivalent where 1 tonne nitrous oxide is equivalent to 265 tonnes carbon dioxide."]
["Biogenic CO2 emissions (See Note 4)",null,null,null,null,"Note 4: Only plants combusting residual municipal waste, refuse derived fuel or solid recovered fuel need complete this section. "]
[null,"Percentage of total carbon dioxide emissions arising from biogenic waste","%",0.51800000000000002]
[null,"No. of measurements undertaken","Number",0]
[null,"Description of how percentage biogenic carbon dioxide emissions have been measured or calculated.\nSee Note 5","Figure taken from 2017 WRAP data",null,null,"Note 5: The results from C14 sampling should be used if this is carried out at the plant (either via an installed sampler or from spot samples).  \nOtherwise, as an approximation (and in lieu of any more accurate metrics which may be developed in future), the measured or estimated biogenic fraction by net calorific value (see Note 6) can be assumed to be the same as the biogenic CO2 fraction of the total CO2 emissions from the plant. "]
["Biogenic fraction of waste feedstock (See Note 4)"]
[null,"Yearly average biogenic percentage of the waste by net calorific value (NCV)","%",0.51800000000000002]
[null,"Description of how biogenic percentage (by NCV) has been calculated or estimated. \nSee Note 6","Figure taken from 2017 WRAP data",null,null,"Note 6: If C14 sampling is carried out at the plant, the methodology set out in the embedded document entitled \"Renewable Energy Association Energy Content of Fuels - Description of Method\" embedded below can be used to calculate the biogenic percentage by net calorific value. Otherwise, data from waste sampling or BIOMA software can be used; or if none of these are available, an estimated figure with justification or a figure assumed on the basis of up-to-date industry data can be used. "]
[null,"Yearly average biogenic percentage of the waste by mass","%",0.71440000000000003]
[null,"If waste sampling undertaken, no. of samples used to ascertain average biogenic percentages above","Number",25]
[null,"Description of how biogenic percentage (by mass) has been calculated or estimated. \nSee Note 7","2023 Audit of waste inputs by Alfred H Knight",null,null,"Note 7: Where available, data from waste sampling should be used; otherwise, an estimated figure with justification can be used, or a figure assumed on the basis of up-to-date industry data. "]
[]
[null,"Comments:"]
[null,"Procurement of C14 autosamplers is currently under way for future reporting once installation has been completed."]

{"sheet":"Residue Quality ","index":11,"n_rows":36,"n_cols":6,"rows_kept":36,"cut":false,"hidden":false,"merged":[[16,0,17,1],[16,2,17,6],[18,0,19,1],[18,2,19,6],[12,0,12,6],[13,0,13,1],[13,2,13,6],[7,0,8,6],[9,0,10,6],[14,0,15,1],[14,2,15,6],[5,0,6,6],[20,0,21,1],[20,2,21,6],[22,0,23,1],[22,2,23,6],[31,3,31,4],[27,2,28,2],[28,3,28,4],[28,5,28,6],[27,3,27,6],[26,0,26,6],[36,0,41,6],[32,3,32,4],[35,0,35,6],[27,0,28,1],[29,0,29,1],[30,0,30,1],[31,0,31,1],[32,0,32,1],[29,3,29,4],[30,3,30,4],[29,5,29,6],[30,5,30,6],[31,5,31,6],[32,5,32,6],[33,0,33,6]]}
[{"$f":"+'Cover Page'!$B$29","v":"Annual Performance Report 2024"},null,null,null,{"$f":"+'Cover Page'!$B$33","v":"Eastcroft  EfW Site"}]
[]
["Residue Quality Monitoring Requirements"]
[]
["Summary of monitoring undertaken and compliance"]
["Monitoring of residues for permit compliance was undertaken with full compliance to the residue limit recorded. \nNo specific events were recorded during 2023."]
[]
[]
[]
[]
[]
[]
["Commentary on any specific events"]
["Date & Event",null,"Description"]
[]
[]
[]
[]
[]
[]
[]
[]
[]
[]
[]
[]
["Residue Quality Monitoring Results"]
["Parameter (unit) ",null,"Limit*","Normal Operation "]
[null,null,null,"Bottom ash  ",null,"APC Residues"]
["Loss on Ignition (average %)",null,"<5%"]
["Total Organic Carbon (average %)",null,"<3%",0.85]
["No. of Assessments Undertaken",null,"---",24,null,4]
["No. of Hazardous Results",null,"---",0]
["* The permit will specify a limit of either 5% loss on ignition or 3% total organic carbon. If both are measured anyway, please enter the results here, even where the limit does not apply. "]
[]
["Comments :"]

{"sheet":"Water","index":12,"n_rows":23,"n_cols":9,"rows_kept":23,"cut":false,"hidden":false,"merged":[[5,0,6,8],[7,0,8,8],[9,0,10,8],[12,0,12,8],[13,0,13,1],[13,2,13,8],[21,0,21,8],[22,0,22,2],[22,3,22,4],[14,0,15,1],[14,2,15,8],[16,0,17,1],[16,2,17,8],[18,0,19,1],[18,2,19,8],[23,0,23,2],[23,3,23,4],[24,0,24,2],[24,3,24,4],[25,0,25,2],[25,3,25,4],[29,0,29,2],[29,3,29,4],[26,0,26,2],[26,3,26,4],[27,0,27,2],[27,3,27,4],[28,0,28,2],[28,3,28,4]]}
[{"$f":"+'Cover Page'!$B$29","v":"Annual Performance Report 2024"},null,null,null,{"$f":"+'Cover Page'!$B$33","v":"Eastcroft  EfW Site"}]
[]
["Emissions to Water"]
[]
["Summary of monitoring undertaken and compliance"]
["No sampling required"]
[]
[]
[]
[]
[]
[]
["Commentary on any specific events"]
["Date & Event",null,"Description"]
[]
[]
[]
[]
[]
[]
[]
["Emissions to Water / Sewer"]
["Parameter",null,null,"Monitoring Frequency",null,"Limit","Target","Max.","Average"]

{"sheet":"Air (periodic)","index":13,"n_rows":39,"n_cols":11,"rows_kept":39,"cut":false,"hidden":false,"merged":[[5,10,8,13],[9,10,11,13],[8,0,8,9],[5,0,6,9],[11,0,11,1],[12,0,12,1],[11,3,11,4],[12,3,12,4],[9,0,10,1],[9,5,9,9],[9,3,10,4],[9,2,10,2],[16,0,16,1],[17,0,17,1],[18,0,18,1],[13,0,13,1],[14,0,14,1],[15,0,15,1],[39,0,40,9],[25,0,25,1],[26,0,26,1],[22,0,22,1],[23,0,23,1],[37,0,37,1],[27,0,27,1],[28,0,28,1],[29,0,29,1],[30,0,30,1],[31,0,31,1],[32,0,32,1],[37,3,37,4],[29,3,29,4],[30,3,30,4],[36,3,36,4],[38,0,38,9],[19,0,19,1],[20,0,20,1],[21,0,21,1],[34,3,34,4],[35,3,35,4],[33,0,33,1],[34,0,34,1],[35,0,35,1],[36,0,36,1],[24,0,24,1],[32,3,32,4],[27,3,27,4],[33,3,33,4],[19,3,19,4],[20,3,20,4],[21,3,21,4],[22,3,22,4],[23,3,23,4],[24,3,24,4],[31,3,31,4],[25,3,25,4],[26,3,26,4],[28,3,28,4],[13,10,14,12],[15,10,16,10],[15,11,16,11],[15,12,16,12],[18,3,18,4],[13,3,13,4],[14,3,14,4],[15,3,15,4],[16,3,16,4],[17,3,17,4]]}
[{"$f":"+'Cover Page'!$B$29","v":"Annual Performance Report 2024"},null,null,null,{"$f":"+'Cover Page'!$B$33","v":"Eastcroft  EfW Site"}]
[]
["Emissions to Air (periodically monitored)"]
[]
["Summary of monitoring undertaken, standards used and compliance",null,null,null,null,null,null,null,null,null,"Notes:"]
[null,null,null,null,null,null,null,null,null,null,"Template may require adjustment for any bespoke monitoring requirements of permit - please also check that all default ELV values, reference periods and the stated oxygen reference value match those for your plant, and edit if necessary!"]
[]
[]
["Results of emissions to air that are periodically monitored - oxygen reference 11% "]
["Substance",null,"Ref. Period","Emission Limit Value",null,"Average",null,null,null,null,"User to add additional tables as necessary, depending on whether quarterly or bi-annual reporting is required for the compliance year"]
[null,null,null,null,null,"A1","A2","A3","A4","A5"]
["Hydrogen fluoride",null,"1 hr","1 mg/m3",null,0.16,0.31]
["Cd and Tl and their compounds",null,"0.5-8hrs","0.02 mg/m3",null,2E-3,1.3500000000000001E-3]
["Hg and its compounds",null,"0.5-8hrs","0.02 mg/m3",null,1E-3,8.5000000000000006E-4]
["Sb, As, Pb, Cr, Co, Cu, Mn, Ni, V and their compounds",null,"0.5-8hrs","0.3 mg/m3",null,0.03,8.6499999999999994E-2]
["Dioxins & Furans (I-TEQ)",null,"6-8hrs","0.06 ng/m3",null,3.0000000000000001E-3,4.8999999999999998E-3]
["PCBs (WHO-TEQ Humans / Mammals)",null,"6-8hrs","None set ng/m3",null,2.9999999999999997E-4,1E-3]
["PCBs (WHO-TEQ Fish)",null,"6-8hrs","None set ng/m3",null,2.0000000000000002E-5,6.5000000000000008E-5]
["PCBs (WHO-TEQ Birds)",null,"6-8hrs","None set ng/m3",null,1E-3,2.3500000000000001E-3]
["Dioxins & Furans (WHO-TEQ Humans / Mammals)",null,"6-8hrs","None set ng/m3",null,3.0000000000000001E-3,4.3999999999999994E-3]
["Dioxins & Furans (WHO-TEQ Fish)",null,"6-8hrs","None set ng/m3",null,4.0000000000000001E-3,4.5500000000000002E-3]
["Dioxins & Furans (WHO-TEQ Birds)",null,"6-8hrs","None set ng/m3",null,6.0000000000000001E-3,1.4800000000000001E-2]
["Anthanthrene",null,"6-8hrs","None set µg/m3",null,"< 0.0018","< 0.0017"]
["Benzo(a)anthracene",null,"6-8hrs","None set µg/m3",null,0.01,1.9499999999999999E-3]
["Benzo(a)pyrene",null,"6-8hrs","None set µg/m3",null,0.01,5.0000000000000001E-3]
["Benzo(b)fluoranthene",null,"6-8hrs","None set µg/m3",null,"< 0.0018","< 0.0017"]
["Benzo(b)naptho(2,1-d) thiophene",null,"6-8hrs","None set µg/m3",null,"< 0.0018",1.25E-3]
["Benzo(c)phenanthrene",null,"6-8hrs","None set µg/m3",null,0,"< 0.0017"]
["Benzo(ghi)perylene",null,"6-8hrs","None set µg/m3",null,"< 0.0018",5.0000000000000001E-3]
["Benzo(k)fluoranthene",null,"6-8hrs","None set µg/m3",null,0,"< 0.0017"]
["Cholanthrene",null,"6-8hrs","None set µg/m3",null,"< 0.0018","< 0.0017"]
["Chrysene",null,"6-8hrs","None set µg/m3",null,0.01,0.01]
["Cyclopenta(cd)pyrene",null,"6-8hrs","None set µg/m3",null,"< 0.0018","< 0.0017"]
["Dibenzo(ai)pyrene",null,"6-8hrs","None set µg/m3",null,"< 0.0018","< 0.0017"]
["Dibenzo(ah)anthracene",null,"6-8hrs","None set µg/m3",null,"< 0.0018","< 0.0017"]
["Fluoranthene",null,"6-8hrs","None set µg/m3",null,0.04,0.06]
["Indeno(123-cd) pyrene",null,"6-8hrs","None set µg/m3",null,"< 0.0018",1.4E-3]
["Naphthalene",null,"6-8hrs","None set µg/m3",null,0.5,0.25]
["Comments :"]

{"sheet":"Air (CEMS)","index":14,"n_rows":28,"n_cols":14,"rows_kept":28,"cut":false,"hidden":false,"merged":[[14,13,15,13],[14,14,15,14],[14,15,15,15],[12,13,13,15],[26,0,26,12],[28,0,29,12],[13,0,14,0],[5,0,6,12],[7,0,8,12],[10,0,10,12],[11,0,12,0],[11,2,12,2],[11,1,12,1],[11,3,11,4],[11,5,11,6],[11,7,11,8],[11,9,11,10],[11,11,11,12]]}
[{"$f":"+'Cover Page'!$B$29","v":"Annual Performance Report 2024"},null,null,null,null,null,null,null,{"$f":"+'Cover Page'!$B$33","v":"Eastcroft  EfW Site"}]
[]
["Emissions to Air (continuously monitored)"]
[null,null,null,null,null,null,null,null,null,null,null,null,null,"Notes:"]
["Summary of monitoring undertaken, standards used and compliance",null,null,null,null,null,null,null,null,null,null,null,null,"Template may require adjustment for any bespoke monitoring requirements of permit"]
["Continuous monitoring to EN14181. 42 notified ELV exceedances.",null,null,null,null,null,null,null,null,null,null,null,null,"Please check that all default ELV values match those for your plant and edit if necessary!"]
[null,null,null,null,null,null,null,null,null,null,null,null,null,"Report to 1 decimal place"]
[]
[]
[]
["Results of emissions to air that are continuously monitored (maximum and average values for each line) - oxygen reference 11%"]
["Substance","Reference Period","Emission Limit Value","A1",null,"A2",null,"A3",null,"A4",null,"A5"]
[null,null,null,"Max.","Avg.","Max.","Avg.","Max.","Avg.","Max.","Avg.","Max.","Avg."]
["Oxides of nitrogen","Daily mean","180 mg/m3 ",169.6,138.91666666666666,172.6,138.07499999999999]
[null,"½ hourly mean","400 mg/m3 ",241.4,139.09166666666667,306.8,138.19999999999999]
["Particulates","Daily mean","5 mg/m3",3,0.3666666666666667,1.7,0.40000000000000008]
[null,"½ hourly mean","30 mg/m3 ",9.1,0.41666666666666669,10.3,0.40000000000000008]
["Total Organic Carbon ","Daily mean","10 mg/m3 ",1.8,0.57499999999999996,2.7,0.59166666666666656]
[null,"½ hourly mean","20 mg/m3 ",34.6,0.61666666666666681,38.299999999999997,0.6333333333333333]
["Hydrogen chloride ","Daily mean","8 mg/m3 ",9.8000000000000007,3.4666666666666668,9,3.6083333333333329]
[null,"½ hourly mean","60 mg/m3 ",268.7,3.5,211.2,3.6416666666666671]
["Sulphur dioxide","Daily mean","40 mg/m3 ",25.2,16.991666666666671,39.200000000000003,20.524999999999999]
[null,"½ hourly mean","200 mg/m3 ",280.2,17.058333333333334,315,20.55]
["Carbon monoxide ","Daily mean","50 mg/m3 ",16.2,6.8166666666666673,29.8,6.6499999999999986]
[null,"95%ile 10-min avg *","150 mg/m3 *",{"$f":"'[1]CO 95% 10 min'!O19","v":656.5},{"$f":"'[1]CO 95% 10 min'!M19","v":32.4},{"$f":"'[1]CO 95% 10 min'!O34","v":1139.3},{"$f":"'[1]CO 95% 10 min'!M34","v":27.424999999999997}]
[" Ammonia","Daily mean","15 mg/m3 ",4.7,1.1666666666666667,12.2,1.7750000000000001]
["* = delete as appropriate, depending on whether your plant has half-hourly or 10-min CO ELVs\n"]
["Comments :"]

{"sheet":"HCl","index":15,"n_rows":79,"n_cols":17,"rows_kept":79,"cut":false,"hidden":false,"merged":[[12,16,15,18],[51,9,63,9],[66,9,78,9],[4,9,4,14],[4,1,4,3],[4,4,4,6],[48,0,51,6],[47,0,47,6],[6,9,18,9],[21,9,33,9],[36,9,48,9],[3,16,7,18],[9,16,11,18],[18,4,18,6]]}
[{"$f":"+'Cover Page'!$B$29","v":"Annual Performance Report 2024"},null,null,null,{"$f":"+'Cover Page'!$B$33","v":"Eastcroft  EfW Site"}]
[]
["Monitoring of Hydrogen Chloride emissions",null,null,"Whole Installation",null,null,"See  Notes in Cell Q3",null,null,{"$f":"+A3","v":"Monitoring of Hydrogen Chloride emissions"},null,null,null,"Per Combustion Line",null,null,"Notes:"]
[null,null,null,null,null,null,null,null,null,null,null,null,null,null,null,null,"User to add logic to complete Whole installation, Table A5:G18. From the data in Per Combustion Line, Table J6:O79, subject to No. of lines installed"]
[{"$f":"+'Cover Page'!C39","v":2024},"1/2 Hourly Reference Periods",null,null,"Daily Reference Periods"]
["mg/Nm3","1/2 hourly HCl ELV","Monthly mean of half-hourly averages","Highest half- hourly average","Daily HCl ELV","Monthly mean of  daily averages","Highest daily average",null,null,{"$f":"+A5","v":2024},"mg/Nm3","Monthly mean of half-hourly averages","Highest half- hourly average","Monthly mean of  daily averages","Highest daily average"]
["Jan",60,3.3,8.9,8,3.3,4.5999999999999996,null,null,"A1","Jan",2.8,8.9,2.8,3.6]
["Feb",60,3.2,44.4,8,3.1500000000000004,5.5,null,null,null,"Feb",2.7,9.4,2.6,3.9]
["Mar",60,3.4000000000000004,268.7,8,3.4000000000000004,9.8000000000000007,null,null,null,"Mar",3.1,268.7,3.1,9.8000000000000007,null,"Whole Installation table A5:G18:"]
["Apr",60,4.1999999999999993,188.9,8,4.0999999999999996,6.8,null,null,null,"Apr",4.0999999999999996,188.9,4,6.8,null,"Mean: for 1/2 hourly and daily periods calculate mean of values across all operational combustion lines for the month"]
["May",60,4,15.4,8,3.95,5,null,null,null,"May",4,15.4,3.9,5]
["Jun",60,3.85,112.4,8,3.75,6.4,null,null,null,"Jun",3.7,112.4,3.6,6.4]
["Jul",60,4.1500000000000004,40.799999999999997,8,4.0999999999999996,6.2,null,null,null,"Jul",4,40.799999999999997,4,6,null,"Maximum: for 1/2 hourly and daily periods use the highest value across all operational combustion lines for the month"]
["Aug",60,4.5,211.2,8,4.5,9.4,null,null,null,"Aug",4.4000000000000004,170,4.4000000000000004,9.4]
["Sep",60,3.45,49.6,8,3.45,4.8,null,null,null,"Sep",4,49.6,4,4.8]
["Oct",60,2.85,28.7,8,2.85,4.0999999999999996,null,null,null,"Oct",3.1,28.7,3.1,4.0999999999999996]
["Nov",60,3.25,14.7,8,3.2,4.0999999999999996,null,null,null,"Nov",3.4,14.7,3.4,4.0999999999999996]
["Dec",60,2.7,6.5,8,2.7,4.0999999999999996,null,null,null,"Dec",2.7,6.5,2.7,4.0999999999999996]
[null,null,null,null,null,null,null,null,null,null,"Annual",{"$f":"AVERAGE(L7:L18)","v":3.5},{"$f":"MAX(M7:M18)","v":268.7},{"$f":"AVERAGE(N7:N18)","v":3.4666666666666668},{"$f":"MAX(O7:O18)","v":9.8000000000000007}]
[]
[null,null,null,null,null,null,null,null,null,{"$f":"+A5","v":2024},"mg/Nm3","Monthly mean of half-hourly averages","Highest half- hourly average","Monthly mean of  daily averages","Highest daily average"]
[null,null,null,null,null,null,null,null,null,"A2","Jan",3.8,7.3,3.8,4.5999999999999996]
[null,null,null,null,null,null,null,null,null,null,"Feb",3.7,44.4,3.7,5.5]
[null,null,null,null,null,null,null,null,null,null,"Mar",3.7,9.5,3.7,4.7]
[null,null,null,null,null,null,null,null,null,null,"Apr",4.3,8.1999999999999993,4.2,5.2]
[null,null,null,null,null,null,null,null,null,null,"May",4,6.8,4,4.8]
[null,null,null,null,null,null,null,null,null,null,"Jun",4,6.5,3.9,4.7]
[null,null,null,null,null,null,null,null,null,null,"Jul",4.3,30.8,4.2,6.2]
[null,null,null,null,null,null,null,null,null,null,"Aug",4.5999999999999996,211.2,4.5999999999999996,9]
[null,null,null,null,null,null,null,null,null,null,"Sep",2.9,9.8000000000000007,2.9,4.2]
[null,null,null,null,null,null,null,null,null,null,"Oct",2.6,14.2,2.6,3.2]
[null,null,null,null,null,null,null,null,null,null,"Nov",3.1,13.9,3,4]
[null,null,null,null,null,null,null,null,null,null,"Dec",2.7,5.7,2.7,3.2]
[null,null,null,null,null,null,null,null,null,null,"Annual",{"$f":"AVERAGE(L22:L33)","v":3.6416666666666671},{"$f":"MAX(M22:M33)","v":211.2},{"$f":"AVERAGE(N22:N33)","v":3.6083333333333329},{"$f":"MAX(O22:O33)","v":9}]
[]
[null,null,null,null,null,null,null,null,null,{"$f":"+A5","v":2024},"mg/Nm3","Monthly mean of half-hourly averages","Highest half- hourly average","Monthly mean of  daily averages","Highest daily average"]
[null,null,null,null,null,null,null,null,null,"A3","Jan"]
[null,null,null,null,null,null,null,null,null,null,"Feb"]
[null,null,null,null,null,null,null,null,null,null,"Mar"]
[null,null,null,null,null,null,null,null,null,null,"Apr"]
[null,null,null,null,null,null,null,null,null,null,"May"]
[null,null,null,null,null,null,null,null,null,null,"Jun"]
[null,null,null,null,null,null,null,null,null,null,"Jul"]
[null,null,null,null,null,null,null,null,null,null,"Aug"]
[null,null,null,null,null,null,null,null,null,null,"Sep"]
[null,null,null,null,null,null,null,null,null,null,"Oct"]
[null,null,null,null,null,null,null,null,null,null,"Nov"]
["Comments :",null,null,null,null,null,null,null,null,null,"Dec"]
[null,null,null,null,null,null,null,null,null,null,"Annual",{"$f":"AVERAGE(L37:L48)","v":{"$error":"#DIV/0!"}},{"$f":"MAX(M37:M48)","v":0},{"$f":"AVERAGE(N37:N48)","v":{"$error":"#DIV/0!"}},{"$f":"MAX(O37:O48)","v":0}]
[]
[null,null,null,null,null,null,null,null,null,{"$f":"+A5","v":2024},"mg/Nm3","Monthly mean of half-hourly averages","Highest half- hourly average","Monthly mean of  daily averages","Highest daily average"]
[null,null,null,null,null,null,null,null,null,"A4","Jan"]
[null,null,null,null,null,null,null,null,null,null,"Feb"]
[null,null,null,null,null,null,null,null,null,null,"Mar"]
[null,null,null,null,null,null,null,null,null,null,"Apr"]
[null,null,null,null,null,null,null,null,null,null,"May"]
[null,null,null,null,null,null,null,null,null,null,"Jun"]
[null,null,null,null,null,null,null,null,null,null,"Jul"]
[null,null,null,null,null,null,null,null,null,null,"Aug"]
[null,null,null,null,null,null,null,null,null,null,"Sep"]
[null,null,null,null,null,null,null,null,null,null,"Oct"]
[null,null,null,null,null,null,null,null,null,null,"Nov"]
[null,null,null,null,null,null,null,null,null,null,"Dec"]
[null,null,null,null,null,null,null,null,null,null,"Annual",{"$f":"AVERAGE(L52:L63)","v":{"$error":"#DIV/0!"}},{"$f":"MAX(M52:M63)","v":0},{"$f":"AVERAGE(N52:N63)","v":{"$error":"#DIV/0!"}},{"$f":"MAX(O52:O63)","v":0}]
[]
[null,null,null,null,null,null,null,null,null,{"$f":"+A5","v":2024},"mg/Nm3","Monthly mean of half-hourly averages","Highest half- hourly average","Monthly mean of  daily averages","Highest daily average"]
[null,null,null,null,null,null,null,null,null,"A5","Jan"]
[null,null,null,null,null,null,null,null,null,null,"Feb"]
[null,null,null,null,null,null,null,null,null,null,"Mar"]
[null,null,null,null,null,null,null,null,null,null,"Apr"]
[null,null,null,null,null,null,null,null,null,null,"May"]
[null,null,null,null,null,null,null,null,null,null,"Jun"]
[null,null,null,null,null,null,null,null,null,null,"Jul"]
[null,null,null,null,null,null,null,null,null,null,"Aug"]
[null,null,null,null,null,null,null,null,null,null,"Sep"]
[null,null,null,null,null,null,null,null,null,null,"Oct"]
[null,null,null,null,null,null,null,null,null,null,"Nov"]
[null,null,null,null,null,null,null,null,null,null,"Dec"]
[null,null,null,null,null,null,null,null,null,null,"Annual",{"$f":"AVERAGE(L67:L78)","v":{"$error":"#DIV/0!"}},{"$f":"MAX(M67:M78)","v":0},{"$f":"AVERAGE(N67:N78)","v":{"$error":"#DIV/0!"}},{"$f":"MAX(O67:O78)","v":0}]

{"sheet":"SO2","index":16,"n_rows":79,"n_cols":17,"rows_kept":79,"cut":false,"hidden":false,"merged":[[3,16,7,18],[9,16,11,18],[12,16,15,18],[66,9,78,9],[4,1,4,3],[4,4,4,6],[4,9,4,14],[6,9,18,9],[21,9,33,9],[36,9,48,9],[47,0,47,6],[48,0,51,6],[51,9,63,9],[18,4,18,6]]}
[{"$f":"+'Cover Page'!$B$29","v":"Annual Performance Report 2024"},null,null,null,{"$f":"+'Cover Page'!$B$33","v":"Eastcroft  EfW Site"}]
[]
["Monitoring of Sulphur dioxide emissions",null,null,"Whole Installation",null,null,"See  Notes in Cell Q3",null,null,{"$f":"+A3","v":"Monitoring of Sulphur dioxide emissions"},null,null,null,"Per Combustion Line",null,null,"Notes:"]
[null,null,null,null,null,null,null,null,null,null,null,null,null,null,null,null,"User to add logic to complete Whole installation, Table A5:G18. From the data in Per Combustion Line, Table J6:O79, subject to No. of lines installed"]
[{"$f":"+'Cover Page'!C39","v":2024},"1/2 Hourly Reference Periods",null,null,"Daily Reference Periods"]
["mg/Nm3","1/2 hourly SO2 ELV","Monthly mean of half-hourly averages","Highest half- hourly average","Daily SO2 ELV","Monthly mean of  daily averages","Highest daily average",null,null,{"$f":"+A5","v":2024},"mg/Nm3","Monthly mean of half-hourly averages","Highest half- hourly average","Monthly mean of  daily averages","Highest daily average"]
["Jan",200,22.4,147.19999999999999,40,22.450000000000003,34.1,null,null,"A1","Jan",19.600000000000001,147.19999999999999,19.600000000000001,26.6]
["Feb",200,27.1,144,40,27.049999999999997,37.5,null,null,null,"Feb",24.2,86.9,24.2,34]
["Mar",200,26.65,280.2,40,26.65,39.200000000000003,null,null,null,"Mar",25.2,280.2,25.2,36.9,null,"Whole Installation table A5:G18:"]
["Apr",200,26.1,78.2,40,26.15,33.9,null,null,null,"Apr",23.9,78.2,24,32.6,null,"Mean: for 1/2 hourly and daily periods calculate mean of values across all operational combustion lines for the month"]
["May",200,24.299999999999997,69.400000000000006,40,24.35,32.799999999999997,null,null,null,"May",21.4,69.400000000000006,21.5,26.7]
["Jun",200,22.799999999999997,71.8,40,22.75,28.1,null,null,null,"Jun",20.9,71.8,20.8,24]
["Jul",200,18.350000000000001,81.5,40,18,24.3,null,null,null,"Jul",17.100000000000001,81.5,16.5,24.3,null,"Maximum: for 1/2 hourly and daily periods use the highest value across all operational combustion lines for the month"]
["Aug",200,12.899999999999999,315,40,12.899999999999999,24.9,null,null,null,"Aug",10.7,138.19999999999999,10.7,17.399999999999999]
["Sep",200,8.5500000000000007,58.9,40,8.5,22.5,null,null,null,"Sep",10.3,57.9,10.3,16.399999999999999]
["Oct",200,10.199999999999999,57.6,40,10.100000000000001,18,null,null,null,"Oct",8.9,57.6,8.8000000000000007,13.6]
["Nov",200,12.35,63.1,40,12.3,20.100000000000001,null,null,null,"Nov",10.5,42.3,10.4,14.3]
["Dec",200,13.95,61.9,40,13.9,21.1,null,null,null,"Dec",12,61.9,11.9,20.2]
[null,null,null,null,null,null,null,null,null,null,"Annual",{"$f":"AVERAGE(L7:L18)","v":17.058333333333334},{"$f":"MAX(M7:M18)","v":280.2},{"$f":"AVERAGE(N7:N18)","v":16.991666666666671},{"$f":"MAX(O7:O18)","v":36.9}]
[]
[null,null,null,null,null,null,null,null,null,{"$f":"+A5","v":2024},"mg/Nm3","Monthly mean of half-hourly averages","Highest half- hourly average","Monthly mean of  daily averages","Highest daily average"]
[null,null,null,null,null,null,null,null,null,"A2","Jan",25.2,94.5,25.3,34.1]
[null,null,null,null,null,null,null,null,null,null,"Feb",30,144,29.9,37.5]
[null,null,null,null,null,null,null,null,null,null,"Mar",28.1,96,28.1,39.200000000000003]
[null,null,null,null,null,null,null,null,null,null,"Apr",28.3,70.900000000000006,28.3,33.9]
[null,null,null,null,null,null,null,null,null,null,"May",27.2,53,27.2,32.799999999999997]
[null,null,null,null,null,null,null,null,null,null,"Jun",24.7,46.4,24.7,28.1]
[null,null,null,null,null,null,null,null,null,null,"Jul",19.600000000000001,60.6,19.5,23.8]
[null,null,null,null,null,null,null,null,null,null,"Aug",15.1,315,15.1,24.9]
[null,null,null,null,null,null,null,null,null,null,"Sep",6.8,58.9,6.7,22.5]
[null,null,null,null,null,null,null,null,null,null,"Oct",11.5,48.6,11.4,18]
[null,null,null,null,null,null,null,null,null,null,"Nov",14.2,63.1,14.2,20.100000000000001]
[null,null,null,null,null,null,null,null,null,null,"Dec",15.9,49.4,15.9,21.1]
[null,null,null,null,null,null,null,null,null,null,"Annual",{"$f":"AVERAGE(L22:L33)","v":20.55},{"$f":"MAX(M22:M33)","v":315},{"$f":"AVERAGE(N22:N33)","v":20.524999999999999},{"$f":"MAX(O22:O33)","v":39.200000000000003}]
[]
[null,null,null,null,null,null,null,null,null,{"$f":"+A5","v":2024},"mg/Nm3","Monthly mean of half-hourly averages","Highest half- hourly average","Monthly mean of  daily averages","Highest daily average"]
[null,null,null,null,null,null,null,null,null,"A3","Jan"]
[null,null,null,null,null,null,null,null,null,null,"Feb"]
[null,null,null,null,null,null,null,null,null,null,"Mar"]
[null,null,null,null,null,null,null,null,null,null,"Apr"]
[null,null,null,null,null,null,null,null,null,null,"May"]
[null,null,null,null,null,null,null,null,null,null,"Jun"]
[null,null,null,null,null,null,null,null,null,null,"Jul"]
[null,null,null,null,null,null,null,null,null,null,"Aug"]
[null,null,null,null,null,null,null,null,null,null,"Sep"]
[null,null,null,null,null,null,null,null,null,null,"Oct"]
[null,null,null,null,null,null,null,null,null,null,"Nov"]
["Comments :",null,null,null,null,null,null,null,null,null,"Dec"]
[null,null,null,null,null,null,null,null,null,null,"Annual",{"$f":"AVERAGE(L37:L48)","v":{"$error":"#DIV/0!"}},{"$f":"MAX(M37:M48)","v":0},{"$f":"AVERAGE(N37:N48)","v":{"$error":"#DIV/0!"}},{"$f":"MAX(O37:O48)","v":0}]
[]
[null,null,null,null,null,null,null,null,null,{"$f":"+A5","v":2024},"mg/Nm3","Monthly mean of half-hourly averages","Highest half- hourly average","Monthly mean of  daily averages","Highest daily average"]
[null,null,null,null,null,null,null,null,null,"A4","Jan"]
[null,null,null,null,null,null,null,null,null,null,"Feb"]
[null,null,null,null,null,null,null,null,null,null,"Mar"]
[null,null,null,null,null,null,null,null,null,null,"Apr"]
[null,null,null,null,null,null,null,null,null,null,"May"]
[null,null,null,null,null,null,null,null,null,null,"Jun"]
[null,null,null,null,null,null,null,null,null,null,"Jul"]
[null,null,null,null,null,null,null,null,null,null,"Aug"]
[null,null,null,null,null,null,null,null,null,null,"Sep"]
[null,null,null,null,null,null,null,null,null,null,"Oct"]
[null,null,null,null,null,null,null,null,null,null,"Nov"]
[null,null,null,null,null,null,null,null,null,null,"Dec"]
[null,null,null,null,null,null,null,null,null,null,"Annual",{"$f":"AVERAGE(L52:L63)","v":{"$error":"#DIV/0!"}},{"$f":"MAX(M52:M63)","v":0},{"$f":"AVERAGE(N52:N63)","v":{"$error":"#DIV/0!"}},{"$f":"MAX(O52:O63)","v":0}]
[]
[null,null,null,null,null,null,null,null,null,{"$f":"+A5","v":2024},"mg/Nm3","Monthly mean of half-hourly averages","Highest half- hourly average","Monthly mean of  daily averages","Highest daily average"]
[null,null,null,null,null,null,null,null,null,"A5","Jan"]
[null,null,null,null,null,null,null,null,null,null,"Feb"]
[null,null,null,null,null,null,null,null,null,null,"Mar"]
[null,null,null,null,null,null,null,null,null,null,"Apr"]
[null,null,null,null,null,null,null,null,null,null,"May"]
[null,null,null,null,null,null,null,null,null,null,"Jun"]
[null,null,null,null,null,null,null,null,null,null,"Jul"]
[null,null,null,null,null,null,null,null,null,null,"Aug"]
[null,null,null,null,null,null,null,null,null,null,"Sep"]
[null,null,null,null,null,null,null,null,null,null,"Oct"]
[null,null,null,null,null,null,null,null,null,null,"Nov"]
[null,null,null,null,null,null,null,null,null,null,"Dec"]
[null,null,null,null,null,null,null,null,null,null,"Annual",{"$f":"AVERAGE(L67:L78)","v":{"$error":"#DIV/0!"}},{"$f":"MAX(M67:M78)","v":0},{"$f":"AVERAGE(N67:N78)","v":{"$error":"#DIV/0!"}},{"$f":"MAX(O67:O78)","v":0}]

{"sheet":"NOx","index":17,"n_rows":79,"n_cols":17,"rows_kept":79,"cut":false,"hidden":false,"merged":[[3,16,7,18],[9,16,11,18],[12,16,15,18],[66,9,78,9],[4,1,4,3],[4,4,4,6],[4,9,4,14],[6,9,18,9],[21,9,33,9],[36,9,48,9],[47,0,47,6],[48,0,51,6],[51,9,63,9],[18,4,18,6]]}
[{"$f":"+'Cover Page'!$B$29","v":"Annual Performance Report 2024"},null,null,null,{"$f":"+'Cover Page'!$B$33","v":"Eastcroft  EfW Site"}]
[]
["Monitoring of Oxides of Nitrogen emissions",null,null,"Whole Installation",null,null,"See  Notes in Cell Q3",null,null,{"$f":"+A3","v":"Monitoring of Oxides of Nitrogen emissions"},null,null,null,"Per Combustion Line",null,null,"Notes:"]
[null,null,null,null,null,null,null,null,null,null,null,null,null,null,null,null,"User to add logic to complete Whole installation, Table A5:G18. From the data in Per Combustion Line, Table J6:O79, subject to No. of lines installed"]
[{"$f":"+'Cover Page'!C39","v":2024},"1/2 Hourly Reference Periods",null,null,"Daily Reference Periods"]
["mg/Nm3","1/2 hourly NOx ELV","Monthly mean of half-hourly averages","Highest half- hourly average","Daily NOx ELV","Monthly mean of  daily averages","Highest daily average",null,null,{"$f":"+A5","v":2024},"mg/Nm3","Monthly mean of half-hourly averages","Highest half- hourly average","Monthly mean of  daily averages","Highest daily average"]
["Jan",400,150.69999999999999,242.2,180,150.80000000000001,169.6,null,null,"A1","Jan",152.5,223.9,152.5,169.6]
["Feb",400,145.80000000000001,227.4,180,145.85,166.4,null,null,null,"Feb",141.5,226.8,141.5,166.4]
["Mar",400,144.85000000000002,212.5,180,144.80000000000001,162,null,null,null,"Mar",142.30000000000001,212.5,142.19999999999999,158.80000000000001,null,"Whole Installation table A5:G18:"]
["Apr",400,153.30000000000001,207,180,153.14999999999998,163.5,null,null,null,"Apr",153.4,205.5,153.1,163.5,null,"Mean: for 1/2 hourly and daily periods calculate mean of values across all operational combustion lines for the month"]
["May",400,150.6,241.4,180,150.4,163.5,null,null,null,"May",151.1,241.4,150.80000000000001,163.5]
["Jun",400,152.19999999999999,238.8,180,152.1,164.7,null,null,null,"Jun",150.1,231,150,164.7]
["Jul",400,144.25,267.39999999999998,180,142.75,172.6,null,null,null,"Jul",143.19999999999999,235.4,142.30000000000001,165.9,null,"Maximum: for 1/2 hourly and daily periods use the highest value across all operational combustion lines for the month"]
["Aug",400,131.35,306.8,180,131.35,142.69999999999999,null,null,null,"Aug",130.1,186.5,130.1,140.5]
["Sep",400,127.45,206.1,180,127.55,160.6,null,null,null,"Sep",142,206.1,142,160.6]
["Oct",400,116.05,161.30000000000001,180,115.95,133.80000000000001,null,null,null,"Oct",116.5,161.30000000000001,116.4,133.80000000000001]
["Nov",400,118.55,176.7,180,118.5,132.9,null,null,null,"Nov",117.1,158.69999999999999,117.1,127]
["Dec",400,128.65,177.1,180,128.75,141.5,null,null,null,"Dec",129.30000000000001,177.1,129,139.80000000000001]
[null,null,null,null,null,null,null,null,null,null,"Annual",{"$f":"AVERAGE(L7:L18)","v":139.09166666666667},{"$f":"MAX(M7:M18)","v":241.4},{"$f":"AVERAGE(N7:N18)","v":138.91666666666666},{"$f":"MAX(O7:O18)","v":169.6}]
[]
[null,null,null,null,null,null,null,null,null,{"$f":"+A5","v":2024},"mg/Nm3","Monthly mean of half-hourly averages","Highest half- hourly average","Monthly mean of  daily averages","Highest daily average"]
[null,null,null,null,null,null,null,null,null,"A2","Jan",148.9,242.2,149.1,163.80000000000001]
[null,null,null,null,null,null,null,null,null,null,"Feb",150.1,227.4,150.19999999999999,162.80000000000001]
[null,null,null,null,null,null,null,null,null,null,"Mar",147.4,193.7,147.4,162]
[null,null,null,null,null,null,null,null,null,null,"Apr",153.19999999999999,207,153.19999999999999,163.1]
[null,null,null,null,null,null,null,null,null,null,"May",150.1,221.7,150,162.5]
[null,null,null,null,null,null,null,null,null,null,"Jun",154.30000000000001,238.8,154.19999999999999,163.4]
[null,null,null,null,null,null,null,null,null,null,"Jul",145.30000000000001,267.39999999999998,143.19999999999999,172.6]
[null,null,null,null,null,null,null,null,null,null,"Aug",132.6,306.8,132.6,142.69999999999999]
[null,null,null,null,null,null,null,null,null,null,"Sep",112.9,184,113.1,129.19999999999999]
[null,null,null,null,null,null,null,null,null,null,"Oct",115.6,159.5,115.5,129.1]
[null,null,null,null,null,null,null,null,null,null,"Nov",120,176.7,119.9,132.9]
[null,null,null,null,null,null,null,null,null,null,"Dec",128,172.6,128.5,141.5]
[null,null,null,null,null,null,null,null,null,null,"Annual",{"$f":"AVERAGE(L22:L33)","v":138.19999999999999},{"$f":"MAX(M22:M33)","v":306.8},{"$f":"AVERAGE(N22:N33)","v":138.07499999999999},{"$f":"MAX(O22:O33)","v":172.6}]
[]
[null,null,null,null,null,null,null,null,null,{"$f":"+A5","v":2024},"mg/Nm3","Monthly mean of half-hourly averages","Highest half- hourly average","Monthly mean of  daily averages","Highest daily average"]
[null,null,null,null,null,null,null,null,null,"A3","Jan"]
[null,null,null,null,null,null,null,null,null,null,"Feb"]
[null,null,null,null,null,null,null,null,null,null,"Mar"]
[null,null,null,null,null,null,null,null,null,null,"Apr"]
[null,null,null,null,null,null,null,null,null,null,"May"]
[null,null,null,null,null,null,null,null,null,null,"Jun"]
[null,null,null,null,null,null,null,null,null,null,"Jul"]
[null,null,null,null,null,null,null,null,null,null,"Aug"]
[null,null,null,null,null,null,null,null,null,null,"Sep"]
[null,null,null,null,null,null,null,null,null,null,"Oct"]
[null,null,null,null,null,null,null,null,null,null,"Nov"]
["Comments :",null,null,null,null,null,null,null,null,null,"Dec"]
[null,null,null,null,null,null,null,null,null,null,"Annual",{"$f":"AVERAGE(L37:L48)","v":{"$error":"#DIV/0!"}},{"$f":"MAX(M37:M48)","v":0},{"$f":"AVERAGE(N37:N48)","v":{"$error":"#DIV/0!"}},{"$f":"MAX(O37:O48)","v":0}]
[]
[null,null,null,null,null,null,null,null,null,{"$f":"+A5","v":2024},"mg/Nm3","Monthly mean of half-hourly averages","Highest half- hourly average","Monthly mean of  daily averages","Highest daily average"]
[null,null,null,null,null,null,null,null,null,"A4","Jan"]
[null,null,null,null,null,null,null,null,null,null,"Feb"]
[null,null,null,null,null,null,null,null,null,null,"Mar"]
[null,null,null,null,null,null,null,null,null,null,"Apr"]
[null,null,null,null,null,null,null,null,null,null,"May"]
[null,null,null,null,null,null,null,null,null,null,"Jun"]
[null,null,null,null,null,null,null,null,null,null,"Jul"]
[null,null,null,null,null,null,null,null,null,null,"Aug"]
[null,null,null,null,null,null,null,null,null,null,"Sep"]
[null,null,null,null,null,null,null,null,null,null,"Oct"]
[null,null,null,null,null,null,null,null,null,null,"Nov"]
[null,null,null,null,null,null,null,null,null,null,"Dec"]
[null,null,null,null,null,null,null,null,null,null,"Annual",{"$f":"AVERAGE(L52:L63)","v":{"$error":"#DIV/0!"}},{"$f":"MAX(M52:M63)","v":0},{"$f":"AVERAGE(N52:N63)","v":{"$error":"#DIV/0!"}},{"$f":"MAX(O52:O63)","v":0}]
[]
[null,null,null,null,null,null,null,null,null,{"$f":"+A5","v":2024},"mg/Nm3","Monthly mean of half-hourly averages","Highest half- hourly average","Monthly mean of  daily averages","Highest daily average"]
[null,null,null,null,null,null,null,null,null,"A5","Jan"]
[null,null,null,null,null,null,null,null,null,null,"Feb"]
[null,null,null,null,null,null,null,null,null,null,"Mar"]
[null,null,null,null,null,null,null,null,null,null,"Apr"]
[null,null,null,null,null,null,null,null,null,null,"May"]
[null,null,null,null,null,null,null,null,null,null,"Jun"]
[null,null,null,null,null,null,null,null,null,null,"Jul"]
[null,null,null,null,null,null,null,null,null,null,"Aug"]
[null,null,null,null,null,null,null,null,null,null,"Sep"]
[null,null,null,null,null,null,null,null,null,null,"Oct"]
[null,null,null,null,null,null,null,null,null,null,"Nov"]
[null,null,null,null,null,null,null,null,null,null,"Dec"]
[null,null,null,null,null,null,null,null,null,null,"Annual",{"$f":"AVERAGE(L67:L78)","v":{"$error":"#DIV/0!"}},{"$f":"MAX(M67:M78)","v":0},{"$f":"AVERAGE(N67:N78)","v":{"$error":"#DIV/0!"}},{"$f":"MAX(O67:O78)","v":0}]

{"sheet":"TOC","index":18,"n_rows":79,"n_cols":17,"rows_kept":79,"cut":false,"hidden":false,"merged":[[3,16,7,18],[9,16,11,18],[12,16,15,18],[66,9,78,9],[4,1,4,3],[4,4,4,6],[4,9,4,14],[6,9,18,9],[21,9,33,9],[36,9,48,9],[47,0,47,6],[48,0,51,6],[51,9,63,9]]}
[{"$f":"+'Cover Page'!$B$29","v":"Annual Performance Report 2024"},null,null,null,{"$f":"+'Cover Page'!$B$33","v":"Eastcroft  EfW Site"}]
[]
["Monitoring of Total organic carbon emissions",null,null,"Whole Installation",null,null,"See  Notes in Cell Q3",null,null,{"$f":"+A3","v":"Monitoring of Total organic carbon emissions"},null,null,null,"Per Combustion Line",null,null,"Notes:"]
[null,null,null,null,null,null,null,null,null,null,null,null,null,null,null,null,"User to add logic to complete Whole installation, Table A5:G18. From the data in Per Combustion Line, Table J6:O79, subject to No. of lines installed"]
[{"$f":"+'Cover Page'!C39","v":2024},"1/2 Hourly Reference Periods",null,null,"Daily Reference Periods"]
["mg/Nm3","1/2 hourly TOC ELV","Monthly mean of half-hourly averages","Highest half- hourly average","Daily TOC ELV","Monthly mean of  daily averages","Highest daily average",null,null,{"$f":"+A5","v":2024},"mg/Nm3","Monthly mean of half-hourly averages","Highest half- hourly average","Monthly mean of  daily averages","Highest daily average"]
["Jan",20,0.85000000000000009,35.299999999999997,10,0.8,2.7,null,null,"A1","Jan",0.9,24.3,0.8,1.4]
["Feb",20,0.85000000000000009,38.299999999999997,10,0.75,1.8,null,null,null,"Feb",0.9,30.1,0.8,1.8]
["Mar",20,0.75,35.799999999999997,10,0.75,2.2000000000000002,null,null,null,"Mar",0.8,13.4,0.8,1.3,null,"Whole Installation table A5:G18:"]
["Apr",20,0.75,34.6,10,0.75,1.5,null,null,null,"Apr",0.8,34.6,0.8,1.5,null,"Mean: for 1/2 hourly and daily periods calculate mean of values across all operational combustion lines for the month"]
["May",20,0.8,27.8,10,0.8,1.5,null,null,null,"May",0.8,17.899999999999999,0.8,1.1000000000000001]
["Jun",20,0.8,11.7,10,0.75,1.2,null,null,null,"Jun",0.8,9.6,0.8,1.1000000000000001]
["Jul",20,0.8,18.600000000000001,10,0.7,1.2,null,null,null,"Jul",0.9,18,0.8,1.2,null,"Maximum: for 1/2 hourly and daily periods use the highest value across all operational combustion lines for the month"]
["Aug",20,0.75,26.3,10,0.75,1.2,null,null,null,"Aug",0.7,26.3,0.7,1.1000000000000001]
["Sep",20,0.6,29.5,10,0.6,2.4,null,null,null,"Sep",0.2,29.5,0.2,0.8]
["Oct",20,0.15000000000000002,24,10,0.1,0.6,null,null,null,"Oct",0.2,22.7,0.1,0.6]
["Nov",20,0.2,34.200000000000003,10,0.15000000000000002,1.1000000000000001,null,null,null,"Nov",0.2,12.3,0.2,0.4]
["Dec",20,0.2,29.3,10,0.1,1.6,null,null,null,"Dec",0.2,18.600000000000001,0.1,0.6]
[null,null,null,null,null,null,null,null,null,null,"Annual",{"$f":"AVERAGE(L7:L18)","v":0.61666666666666681},{"$f":"MAX(M7:M18)","v":34.6},{"$f":"AVERAGE(N7:N18)","v":0.57499999999999996},{"$f":"MAX(O7:O18)","v":1.8}]
[]
[null,null,null,null,null,null,null,null,null,{"$f":"+A5","v":2024},"mg/Nm3","Monthly mean of half-hourly averages","Highest half- hourly average","Monthly mean of  daily averages","Highest daily average"]
[null,null,null,null,null,null,null,null,null,"A2","Jan",0.8,35.299999999999997,0.8,2.7]
[null,null,null,null,null,null,null,null,null,null,"Feb",0.8,38.299999999999997,0.7,1.4]
[null,null,null,null,null,null,null,null,null,null,"Mar",0.7,35.799999999999997,0.7,2.2000000000000002]
[null,null,null,null,null,null,null,null,null,null,"Apr",0.7,32,0.7,1.5]
[null,null,null,null,null,null,null,null,null,null,"May",0.8,27.8,0.8,1.5]
[null,null,null,null,null,null,null,null,null,null,"Jun",0.8,11.7,0.7,1.2]
[null,null,null,null,null,null,null,null,null,null,"Jul",0.7,18.600000000000001,0.6,1.2]
[null,null,null,null,null,null,null,null,null,null,"Aug",0.8,22.2,0.8,1.2]
[null,null,null,null,null,null,null,null,null,null,"Sep",1,29.5,1,2.4]
[null,null,null,null,null,null,null,null,null,null,"Oct",0.1,24,0.1,0.5]
[null,null,null,null,null,null,null,null,null,null,"Nov",0.2,34.200000000000003,0.1,1.1000000000000001]
[null,null,null,null,null,null,null,null,null,null,"Dec",0.2,29.3,0.1,1.6]
[null,null,null,null,null,null,null,null,null,null,"Annual",{"$f":"AVERAGE(L22:L33)","v":0.6333333333333333},{"$f":"MAX(M22:M33)","v":38.299999999999997},{"$f":"AVERAGE(N22:N33)","v":0.59166666666666656},{"$f":"MAX(O22:O33)","v":2.7}]
[]
[null,null,null,null,null,null,null,null,null,{"$f":"+A5","v":2024},"mg/Nm3","Monthly mean of half-hourly averages","Highest half- hourly average","Monthly mean of  daily averages","Highest daily average"]
[null,null,null,null,null,null,null,null,null,"A3","Jan"]
[null,null,null,null,null,null,null,null,null,null,"Feb"]
[null,null,null,null,null,null,null,null,null,null,"Mar"]
[null,null,null,null,null,null,null,null,null,null,"Apr"]
[null,null,null,null,null,null,null,null,null,null,"May"]
[null,null,null,null,null,null,null,null,null,null,"Jun"]
[null,null,null,null,null,null,null,null,null,null,"Jul"]
[null,null,null,null,null,null,null,null,null,null,"Aug"]
[null,null,null,null,null,null,null,null,null,null,"Sep"]
[null,null,null,null,null,null,null,null,null,null,"Oct"]
[null,null,null,null,null,null,null,null,null,null,"Nov"]
["Comments :",null,null,null,null,null,null,null,null,null,"Dec"]
[null,null,null,null,null,null,null,null,null,null,"Annual",{"$f":"AVERAGE(L37:L48)","v":{"$error":"#DIV/0!"}},{"$f":"MAX(M37:M48)","v":0},{"$f":"AVERAGE(N37:N48)","v":{"$error":"#DIV/0!"}},{"$f":"MAX(O37:O48)","v":0}]
[]
[null,null,null,null,null,null,null,null,null,{"$f":"+A5","v":2024},"mg/Nm3","Monthly mean of half-hourly averages","Highest half- hourly average","Monthly mean of  daily averages","Highest daily average"]
[null,null,null,null,null,null,null,null,null,"A4","Jan"]
[null,null,null,null,null,null,null,null,null,null,"Feb"]
[null,null,null,null,null,null,null,null,null,null,"Mar"]
[null,null,null,null,null,null,null,null,null,null,"Apr"]
[null,null,null,null,null,null,null,null,null,null,"May"]
[null,null,null,null,null,null,null,null,null,null,"Jun"]
[null,null,null,null,null,null,null,null,null,null,"Jul"]
[null,null,null,null,null,null,null,null,null,null,"Aug"]
[null,null,null,null,null,null,null,null,null,null,"Sep"]
[null,null,null,null,null,null,null,null,null,null,"Oct"]
[null,null,null,null,null,null,null,null,null,null,"Nov"]
[null,null,null,null,null,null,null,null,null,null,"Dec"]
[null,null,null,null,null,null,null,null,null,null,"Annual",{"$f":"AVERAGE(L52:L63)","v":{"$error":"#DIV/0!"}},{"$f":"MAX(M52:M63)","v":0},{"$f":"AVERAGE(N52:N63)","v":{"$error":"#DIV/0!"}},{"$f":"MAX(O52:O63)","v":0}]
[]
[null,null,null,null,null,null,null,null,null,{"$f":"+A5","v":2024},"mg/Nm3","Monthly mean of half-hourly averages","Highest half- hourly average","Monthly mean of  daily averages","Highest daily average"]
[null,null,null,null,null,null,null,null,null,"A5","Jan"]
[null,null,null,null,null,null,null,null,null,null,"Feb"]
[null,null,null,null,null,null,null,null,null,null,"Mar"]
[null,null,null,null,null,null,null,null,null,null,"Apr"]
[null,null,null,null,null,null,null,null,null,null,"May"]
[null,null,null,null,null,null,null,null,null,null,"Jun"]
[null,null,null,null,null,null,null,null,null,null,"Jul"]
[null,null,null,null,null,null,null,null,null,null,"Aug"]
[null,null,null,null,null,null,null,null,null,null,"Sep"]
[null,null,null,null,null,null,null,null,null,null,"Oct"]
[null,null,null,null,null,null,null,null,null,null,"Nov"]
[null,null,null,null,null,null,null,null,null,null,"Dec"]
[null,null,null,null,null,null,null,null,null,null,"Annual",{"$f":"AVERAGE(L67:L78)","v":{"$error":"#DIV/0!"}},{"$f":"MAX(M67:M78)","v":0},{"$f":"AVERAGE(N67:N78)","v":{"$error":"#DIV/0!"}},{"$f":"MAX(O67:O78)","v":0}]

{"sheet":"Particulates","index":19,"n_rows":79,"n_cols":17,"rows_kept":79,"cut":false,"hidden":false,"merged":[[4,16,8,18],[10,16,12,18],[13,16,16,18],[66,9,78,9],[4,1,4,3],[4,4,4,6],[4,9,4,14],[6,9,18,9],[21,9,33,9],[36,9,48,9],[47,0,47,6],[48,0,51,6],[51,9,63,9],[18,4,18,6]]}
[{"$f":"+'Cover Page'!$B$29","v":"Annual Performance Report 2024"},null,null,null,{"$f":"+'Cover Page'!$B$33","v":"Eastcroft  EfW Site"}]
[]
["Monitoring of Particulate matter emissions",null,null,"Whole Installation",null,null,"See  Notes in Cell Q3",null,null,{"$f":"+A3","v":"Monitoring of Particulate matter emissions"},null,null,null,"Per Combustion Line",null,null,"Notes:"]
[]
[{"$f":"+'Cover Page'!C39","v":2024},"1/2 Hourly Reference Periods",null,null,"Daily Reference Periods",null,null,null,null,null,null,null,null,null,null,null,"User to add logic to complete Whole installation, Table A5:G18. From the data in Per Combustion Line, Table J6:O79, subject to No. of lines installed"]
["mg/Nm3","1/2 hourly PM ELV","Monthly mean of half-hourly averages","Highest half- hourly average","Daily PM ELV","Monthly mean of  daily averages","Highest daily average",null,null,{"$f":"+A5","v":2024},"mg/Nm3","Monthly mean of half-hourly averages","Highest half- hourly average","Monthly mean of  daily averages","Highest daily average"]
["Jan",30,0.55000000000000004,3.7,5,0.5,0.8,null,null,"A1","Jan",0.5,3.7,0.4,0.7]
["Feb",30,0.64999999999999991,5.7,5,0.6,1.3,null,null,null,"Feb",0.6,1.9,0.5,0.9]
["Mar",30,0.75,10.3,5,0.75,1.8,null,null,null,"Mar",0.8,7.9,0.8,1.8]
["Apr",30,0.45,6.5,5,0.4,1.4,null,null,null,"Apr",0.4,6.5,0.3,1.4,null,"Whole Installation table A5:G18:"]
["May",30,0.8,9.1,5,0.75,3,null,null,null,"May",1,9.1,0.9,3,null,"Mean: for 1/2 hourly and daily periods calculate mean of values across all operational combustion lines for the month"]
["Jun",30,0.7,7.2,5,0.7,1.6,null,null,null,"Jun",0.8,7.2,0.8,1.6]
["Jul",30,0.1,1.5,5,0.05,0.2,null,null,null,"Jul",0.1,0.9,0,0.1]
["Aug",30,0.15000000000000002,1.3,5,0.15000000000000002,0.2,null,null,null,"Aug",0.1,0.4,0.1,0.1,null,"Maximum: for 1/2 hourly and daily periods use the highest value across all operational combustion lines for the month"]
["Sep",30,0.15000000000000002,5.3,5,0.15000000000000002,0.5,null,null,null,"Sep",0.1,0.4,0.1,0.2]
["Oct",30,0.2,0.3,5,0.15000000000000002,0.2,null,null,null,"Oct",0.2,0.3,0.1,0.2]
["Nov",30,0.2,0.4,5,0.2,0.2,null,null,null,"Nov",0.2,0.4,0.2,0.2]
["Dec",30,0.2,0.4,5,0.2,0.3,null,null,null,"Dec",0.2,0.4,0.2,0.3]
[null,null,null,null,null,null,null,null,null,null,"Annual",{"$f":"AVERAGE(L7:L18)","v":0.41666666666666669},{"$f":"MAX(M7:M18)","v":9.1},{"$f":"AVERAGE(N7:N18)","v":0.3666666666666667},{"$f":"MAX(O7:O18)","v":3}]
[]
[null,null,null,null,null,null,null,null,null,{"$f":"+A5","v":2024},"mg/Nm3","Monthly mean of half-hourly averages","Highest half- hourly average","Monthly mean of  daily averages","Highest daily average"]
[null,null,null,null,null,null,null,null,null,"A2","Jan",0.6,1.7,0.6,0.8]
[null,null,null,null,null,null,null,null,null,null,"Feb",0.7,5.7,0.7,1.3]
[null,null,null,null,null,null,null,null,null,null,"Mar",0.7,10.3,0.7,1.7]
[null,null,null,null,null,null,null,null,null,null,"Apr",0.5,1.4,0.5,0.6]
[null,null,null,null,null,null,null,null,null,null,"May",0.6,2.9,0.6,1.6]
[null,null,null,null,null,null,null,null,null,null,"Jun",0.6,2.4,0.6,0.7]
[null,null,null,null,null,null,null,null,null,null,"Jul",0.1,1.5,0.1,0.2]
[null,null,null,null,null,null,null,null,null,null,"Aug",0.2,1.3,0.2,0.2]
[null,null,null,null,null,null,null,null,null,null,"Sep",0.2,5.3,0.2,0.5]
[null,null,null,null,null,null,null,null,null,null,"Oct",0.2,0.3,0.2,0.2]
[null,null,null,null,null,null,null,null,null,null,"Nov",0.2,0.3,0.2,0.2]
[null,null,null,null,null,null,null,null,null,null,"Dec",0.2,0.3,0.2,0.2]
[null,null,null,null,null,null,null,null,null,null,"Annual",{"$f":"AVERAGE(L22:L33)","v":0.40000000000000008},{"$f":"MAX(M22:M33)","v":10.3},{"$f":"AVERAGE(N22:N33)","v":0.40000000000000008},{"$f":"MAX(O22:O33)","v":1.7}]
[]
[null,null,null,null,null,null,null,null,null,{"$f":"+A5","v":2024},"mg/Nm3","Monthly mean of half-hourly averages","Highest half- hourly average","Monthly mean of  daily averages","Highest daily average"]
[null,null,null,null,null,null,null,null,null,"A3","Jan"]
[null,null,null,null,null,null,null,null,null,null,"Feb"]
[null,null,null,null,null,null,null,null,null,null,"Mar"]
[null,null,null,null,null,null,null,null,null,null,"Apr"]
[null,null,null,null,null,null,null,null,null,null,"May"]
[null,null,null,null,null,null,null,null,null,null,"Jun"]
[null,null,null,null,null,null,null,null,null,null,"Jul"]
[null,null,null,null,null,null,null,null,null,null,"Aug"]
[null,null,null,null,null,null,null,null,null,null,"Sep"]
[null,null,null,null,null,null,null,null,null,null,"Oct"]
[null,null,null,null,null,null,null,null,null,null,"Nov"]
["Comments :",null,null,null,null,null,null,null,null,null,"Dec"]
[null,null,null,null,null,null,null,null,null,null,"Annual",{"$f":"AVERAGE(L37:L48)","v":{"$error":"#DIV/0!"}},{"$f":"MAX(M37:M48)","v":0},{"$f":"AVERAGE(N37:N48)","v":{"$error":"#DIV/0!"}},{"$f":"MAX(O37:O48)","v":0}]
[]
[null,null,null,null,null,null,null,null,null,{"$f":"+A5","v":2024},"mg/Nm3","Monthly mean of half-hourly averages","Highest half- hourly average","Monthly mean of  daily averages","Highest daily average"]
[null,null,null,null,null,null,null,null,null,"A4","Jan"]
[null,null,null,null,null,null,null,null,null,null,"Feb"]
[null,null,null,null,null,null,null,null,null,null,"Mar"]
[null,null,null,null,null,null,null,null,null,null,"Apr"]
[null,null,null,null,null,null,null,null,null,null,"May"]
[null,null,null,null,null,null,null,null,null,null,"Jun"]
[null,null,null,null,null,null,null,null,null,null,"Jul"]
[null,null,null,null,null,null,null,null,null,null,"Aug"]
[null,null,null,null,null,null,null,null,null,null,"Sep"]
[null,null,null,null,null,null,null,null,null,null,"Oct"]
[null,null,null,null,null,null,null,null,null,null,"Nov"]
[null,null,null,null,null,null,null,null,null,null,"Dec"]
[null,null,null,null,null,null,null,null,null,null,"Annual",{"$f":"AVERAGE(L52:L63)","v":{"$error":"#DIV/0!"}},{"$f":"MAX(M52:M63)","v":0},{"$f":"AVERAGE(N52:N63)","v":{"$error":"#DIV/0!"}},{"$f":"MAX(O52:O63)","v":0}]
[]
[null,null,null,null,null,null,null,null,null,{"$f":"+A5","v":2024},"mg/Nm3","Monthly mean of half-hourly averages","Highest half- hourly average","Monthly mean of  daily averages","Highest daily average"]
[null,null,null,null,null,null,null,null,null,"A5","Jan"]
[null,null,null,null,null,null,null,null,null,null,"Feb"]
[null,null,null,null,null,null,null,null,null,null,"Mar"]
[null,null,null,null,null,null,null,null,null,null,"Apr"]
[null,null,null,null,null,null,null,null,null,null,"May"]
[null,null,null,null,null,null,null,null,null,null,"Jun"]
[null,null,null,null,null,null,null,null,null,null,"Jul"]
[null,null,null,null,null,null,null,null,null,null,"Aug"]
[null,null,null,null,null,null,null,null,null,null,"Sep"]
[null,null,null,null,null,null,null,null,null,null,"Oct"]
[null,null,null,null,null,null,null,null,null,null,"Nov"]
[null,null,null,null,null,null,null,null,null,null,"Dec"]
[null,null,null,null,null,null,null,null,null,null,"Annual",{"$f":"AVERAGE(L67:L78)","v":{"$error":"#DIV/0!"}},{"$f":"MAX(M67:M78)","v":0},{"$f":"AVERAGE(N67:N78)","v":{"$error":"#DIV/0!"}},{"$f":"MAX(O67:O78)","v":0}]

{"sheet":"CO 0.5 hourly","index":20,"n_rows":82,"n_cols":17,"rows_kept":82,"cut":false,"hidden":false,"merged":[[4,0,5,6],[6,16,10,18],[12,16,14,18],[15,16,18,18],[69,9,81,9],[7,1,7,3],[7,4,7,6],[7,9,7,14],[9,9,21,9],[24,9,36,9],[39,9,51,9],[50,0,50,6],[51,0,54,6],[54,9,66,9]]}
[{"$f":"+'Cover Page'!$B$29","v":"Annual Performance Report 2024"},null,null,null,{"$f":"+'Cover Page'!$B$33","v":"Eastcroft  EfW Site"}]
[]
["Monitoring of Carbon Monoxide (half hourly)",null,null,"Whole Installation",null,null,"See  Notes in Cell Q3",null,null,{"$f":"+A3","v":"Monitoring of Carbon Monoxide (half hourly)"},null,null,null,"Per Combustion Line",null,null,"Notes:"]
[]
["Please complete this tab for your plant if you have 1/2 hourly CO ELVs; otherwise, leave it blank and complete the CO 95% 10 min tab"]
[]
[null,null,null,null,null,null,null,null,null,null,null,null,null,null,null,null,"User to add logic to complete Whole installation, Table A5:G18. From the data in Per Combustion Line, Table J6:O79, subject to No. of lines installed"]
[{"$f":"+'Cover Page'!C39","v":2024},"1/2 Hourly Reference Periods",null,null,"Daily Reference Periods"]
["mg/Nm3","1/2 hourly CO ELV","Monthly mean of half-hourly averages","Highest half- hourly average","Daily CO ELV","Monthly mean of  daily averages","Highest daily average",null,null,{"$f":"+A8","v":2024},"mg/Nm3","Monthly mean of half-hourly averages","Highest half- hourly average","Monthly mean of  daily averages","Highest daily average"]
["Jan",100,null,null,50,null,null,null,null,"A1","Jan"]
["Feb",{"$f":"+B10","v":100},null,null,{"$f":"+E10","v":50},null,null,null,null,null,"Feb"]
["Mar",{"$f":"+B11","v":100},null,null,{"$f":"+E11","v":50},null,null,null,null,null,"Mar",null,null,null,null,null,"Whole Installation table A5:G18:"]
["Apr",100,null,null,50,null,null,null,null,null,"Apr",null,null,null,null,null,"Mean: for 1/2 hourly and daily periods calculate mean of values across all operational combustion lines for the month"]
["May",100,null,null,50,null,null,null,null,null,"May"]
["Jun",100,null,null,50,null,null,null,null,null,"Jun"]
["Jul",100,null,null,50,null,null,null,null,null,"Jul",null,null,null,null,null,"Maximum: for 1/2 hourly and daily periods use the highest value across all operational combustion lines for the month"]
["Aug",100,null,null,50,null,null,null,null,null,"Aug"]
["Sep",100,null,null,50,null,null,null,null,null,"Sep"]
["Oct",100,null,null,50,null,null,null,null,null,"Oct"]
["Nov",100,null,null,50,null,null,null,null,null,"Nov"]
["Dec",100,null,null,50,null,null,null,null,null,"Dec"]
[null,null,null,null,null,null,null,null,null,null,"Annual",{"$f":"AVERAGE(L10:L21)","v":{"$error":"#DIV/0!"}},{"$f":"MAX(M10:M21)","v":0},{"$f":"AVERAGE(N10:N21)","v":{"$error":"#DIV/0!"}},{"$f":"MAX(O10:O21)","v":0}]
[]
[null,null,null,null,null,null,null,null,null,{"$f":"+A8","v":2024},"mg/Nm3","Monthly mean of half-hourly averages","Highest half- hourly average","Monthly mean of  daily averages","Highest daily average"]
[null,null,null,null,null,null,null,null,null,"A2","Jan"]
[null,null,null,null,null,null,null,null,null,null,"Feb"]
[null,null,null,null,null,null,null,null,null,null,"Mar"]
[null,null,null,null,null,null,null,null,null,null,"Apr"]
[null,null,null,null,null,null,null,null,null,null,"May"]
[null,null,null,null,null,null,null,null,null,null,"Jun"]
[null,null,null,null,null,null,null,null,null,null,"Jul"]
[null,null,null,null,null,null,null,null,null,null,"Aug"]
[null,null,null,null,null,null,null,null,null,null,"Sep"]
[null,null,null,null,null,null,null,null,null,null,"Oct"]
[null,null,null,null,null,null,null,null,null,null,"Nov"]
[null,null,null,null,null,null,null,null,null,null,"Dec"]
[null,null,null,null,null,null,null,null,null,null,"Annual",{"$f":"AVERAGE(L25:L36)","v":{"$error":"#DIV/0!"}},{"$f":"MAX(M25:M36)","v":0},{"$f":"AVERAGE(N25:N36)","v":{"$error":"#DIV/0!"}},{"$f":"MAX(O25:O36)","v":0}]
[]
[null,null,null,null,null,null,null,null,null,{"$f":"+A8","v":2024},"mg/Nm3","Monthly mean of half-hourly averages","Highest half- hourly average","Monthly mean of  daily averages","Highest daily average"]
[null,null,null,null,null,null,null,null,null,"A3","Jan"]
[null,null,null,null,null,null,null,null,null,null,"Feb"]
[null,null,null,null,null,null,null,null,null,null,"Mar"]
[null,null,null,null,null,null,null,null,null,null,"Apr"]
[null,null,null,null,null,null,null,null,null,null,"May"]
[null,null,null,null,null,null,null,null,null,null,"Jun"]
[null,null,null,null,null,null,null,null,null,null,"Jul"]
[null,null,null,null,null,null,null,null,null,null,"Aug"]
[null,null,null,null,null,null,null,null,null,null,"Sep"]
[null,null,null,null,null,null,null,null,null,null,"Oct"]
[null,null,null,null,null,null,null,null,null,null,"Nov"]
["Comments :",null,null,null,null,null,null,null,null,null,"Dec"]
[null,null,null,null,null,null,null,null,null,null,"Annual",{"$f":"AVERAGE(L40:L51)","v":{"$error":"#DIV/0!"}},{"$f":"MAX(M40:M51)","v":0},{"$f":"AVERAGE(N40:N51)","v":{"$error":"#DIV/0!"}},{"$f":"MAX(O40:O51)","v":0}]
[]
[null,null,null,null,null,null,null,null,null,{"$f":"+A8","v":2024},"mg/Nm3","Monthly mean of half-hourly averages","Highest half- hourly average","Monthly mean of  daily averages","Highest daily average"]
[null,null,null,null,null,null,null,null,null,"A4","Jan"]
[null,null,null,null,null,null,null,null,null,null,"Feb"]
[null,null,null,null,null,null,null,null,null,null,"Mar"]
[null,null,null,null,null,null,null,null,null,null,"Apr"]
[null,null,null,null,null,null,null,null,null,null,"May"]
[null,null,null,null,null,null,null,null,null,null,"Jun"]
[null,null,null,null,null,null,null,null,null,null,"Jul"]
[null,null,null,null,null,null,null,null,null,null,"Aug"]
[null,null,null,null,null,null,null,null,null,null,"Sep"]
[null,null,null,null,null,null,null,null,null,null,"Oct"]
[null,null,null,null,null,null,null,null,null,null,"Nov"]
[null,null,null,null,null,null,null,null,null,null,"Dec"]
[null,null,null,null,null,null,null,null,null,null,"Annual",{"$f":"AVERAGE(L55:L66)","v":{"$error":"#DIV/0!"}},{"$f":"MAX(M55:M66)","v":0},{"$f":"AVERAGE(N55:N66)","v":{"$error":"#DIV/0!"}},{"$f":"MAX(O55:O66)","v":0}]
[]
[null,null,null,null,null,null,null,null,null,{"$f":"+A8","v":2024},"mg/Nm3","Monthly mean of half-hourly averages","Highest half- hourly average","Monthly mean of  daily averages","Highest daily average"]
[null,null,null,null,null,null,null,null,null,"A5","Jan"]
[null,null,null,null,null,null,null,null,null,null,"Feb"]
[null,null,null,null,null,null,null,null,null,null,"Mar"]
[null,null,null,null,null,null,null,null,null,null,"Apr"]
[null,null,null,null,null,null,null,null,null,null,"May"]
[null,null,null,null,null,null,null,null,null,null,"Jun"]
[null,null,null,null,null,null,null,null,null,null,"Jul"]
[null,null,null,null,null,null,null,null,null,null,"Aug"]
[null,null,null,null,null,null,null,null,null,null,"Sep"]
[null,null,null,null,null,null,null,null,null,null,"Oct"]
[null,null,null,null,null,null,null,null,null,null,"Nov"]
[null,null,null,null,null,null,null,null,null,null,"Dec"]
[null,null,null,null,null,null,null,null,null,null,"Annual",{"$f":"AVERAGE(L70:L81)","v":{"$error":"#DIV/0!"}},{"$f":"MAX(M70:M81)","v":0},{"$f":"AVERAGE(N70:N81)","v":{"$error":"#DIV/0!"}},{"$f":"MAX(O70:O81)","v":0}]

{"sheet":"CO 95% 10 min","index":21,"n_rows":82,"n_cols":19,"rows_kept":82,"cut":false,"hidden":false,"merged":[[4,0,5,7],[6,18,10,20],[12,18,14,20],[15,18,18,20],[69,10,81,10],[7,1,7,4],[7,5,7,7],[7,10,7,16],[9,10,21,10],[24,10,36,10],[39,10,51,10],[50,0,50,7],[51,0,54,7],[54,10,66,10]]}
[{"$f":"+'Cover Page'!$B$29","v":"Annual Performance Report 2024"},null,null,null,{"$f":"+'Cover Page'!$B$33","v":"Eastcroft  EfW Site"}]
[]
["Monitoring of Carbon Monoxide (10-minute avg)",null,null,null,"Whole Installation",null,null,"See  Notes in Cell S3",null,{"$f":"+A3","v":"Monitoring of Carbon Monoxide (10-minute avg)"},null,null,null,null,"Per Combustion Line",null,"Notes:",null,"Notes:"]
[]
["Please complete this tab for your plant if you have 10-minute average CO ELVs; otherwise, leave it blank and complete the CO 0.5 hourly tab"]
[]
[null,null,null,null,null,null,null,null,null,null,null,null,null,null,null,null,null,null,"User to add logic to complete Whole installation, Table A5:H18. From the data in Per Combustion Line, Table K6:Q79, subject to No. of lines installed"]
[{"$f":"+'Cover Page'!C39","v":2024},"10-minute Reference Periods",null,null,null,"Daily Reference Periods"]
["mg/Nm3","95%ile 10-min avg CO ELV","Highest daily 95%ile 10-min average","Monthly mean of 10-min averages","Highest 10-min average","Daily CO ELV","Monthly mean of  daily averages","Highest daily average",null,null,{"$f":"+A8","v":2024},"mg/Nm3","Highest daily 95%ile 10-min average","Monthly mean of 10-min averages","Highest 10-min average","Monthly mean of  daily averages","Highest daily average"]
["Jan",150,20.9,7.4,410.7,50,7.35,16.100000000000001,null,null,"A1","Jan",20.9,7.4,410.7,7.3,11.2]
["Feb",{"$f":"+B10","v":150},80.3,6.5,477.5,{"$f":"+F10","v":50},6.45,16.2,null,null,null,"Feb",80.3,6.9,477.5,6.9,16.2]
["Mar",{"$f":"+B11","v":150},56.7,6.7,1139.3,{"$f":"+F11","v":50},6.65,16,null,null,null,"Mar",56.7,7.5,448.4,7.4,15.8,null,"Whole Installation table A5:H18:"]
["Apr",150,39.1,6,501.6,50,5.9499999999999993,10.1,null,null,null,"Apr",14,5.9,344.2,5.8,9.1999999999999993,null,"Mean: for 10-min and daily periods use average of all operational combustion lines."]
["May",150,35,6.35,369.8,50,6.3000000000000007,11.2,null,null,null,"May",35,6.4,369.8,6.4,11.2]
["Jun",150,18.899999999999999,7.0500000000000007,468.4,50,7,12,null,null,null,"Jun",18.899999999999999,7.2,206.3,7.2,10.8]
["Jul",150,64.900000000000006,8.65,383.4,50,7.65,29.8,null,null,null,"Jul",25.5,6.7,252.1,5.4,10.3,null,"Maximum: for 10-min and daily periods use the highest of all operational combustion lines in any month."]
["Aug",150,34.200000000000003,5.75,429,50,6.2,12.5,null,null,null,"Aug",34.200000000000003,5.8,429,6.7,10.4]
["Sep",150,52.3,7.1,448,50,6.9499999999999993,13.7,null,null,null,"Sep",21,7.6,448,7.6,13.7]
["Oct",150,27,6.65,432.7,50,6.65,12.2,null,null,null,"Oct",27,6.7,432.7,6.7,11.9]
["Nov",150,34,7.0500000000000007,335.8,50,6.9,12.9,null,null,null,"Nov",34,7.9,335.8,7.7,12.9]
["Dec",150,21.3,6.9,656.5,50,6.75,13.1,null,null,null,"Dec",21.3,6.9,656.5,6.7,9.4]
[null,null,null,null,null,null,null,null,null,null,null,"Annual",{"$f":"AVERAGE(M10:M21)","v":32.4},null,{"$f":"MAX(O10:O21)","v":656.5},{"$f":"AVERAGE(P10:P21)","v":6.8166666666666673},{"$f":"MAX(Q10:Q21)","v":16.2}]
[]
[null,null,null,null,null,null,null,null,null,null,{"$f":"+A8","v":2024},"mg/Nm3","Highest daily 95%ile 10-min average","Monthly mean of 10-min averages","Highest 10-min average","Monthly mean of  daily averages","Highest daily average"]
[null,null,null,null,null,null,null,null,null,null,"A2","Jan",20.7,7.4,376.6,7.4,16.100000000000001]
[null,null,null,null,null,null,null,null,null,null,null,"Feb",15.3,6.1,227.3,6,10.5]
[null,null,null,null,null,null,null,null,null,null,null,"Mar",23.5,5.9,1139.3,5.9,16]
[null,null,null,null,null,null,null,null,null,null,null,"Apr",39.1,6.1,501.6,6.1,10.1]
[null,null,null,null,null,null,null,null,null,null,null,"May",14.2,6.3,280.60000000000002,6.2,9.1]
[null,null,null,null,null,null,null,null,null,null,null,"Jun",16.600000000000001,6.9,468.4,6.8,12]
[null,null,null,null,null,null,null,null,null,null,null,"Jul",64.900000000000006,10.6,383.4,9.9,29.8]
[null,null,null,null,null,null,null,null,null,null,null,"Aug",23.2,5.7,370,5.7,12.5]
[null,null,null,null,null,null,null,null,null,null,null,"Sep",52.3,6.6,321.7,6.3,12.3]
[null,null,null,null,null,null,null,null,null,null,null,"Oct",24.4,6.6,277.89999999999998,6.6,12.2]
[null,null,null,null,null,null,null,null,null,null,null,"Nov",21.7,6.2,307.8,6.1,10]
[null,null,null,null,null,null,null,null,null,null,null,"Dec",13.2,6.9,649.1,6.8,13.1]
[null,null,null,null,null,null,null,null,null,null,null,"Annual",{"$f":"AVERAGE(M25:M36)","v":27.424999999999997},null,{"$f":"MAX(O25:O36)","v":1139.3},{"$f":"AVERAGE(P25:P36)","v":6.6499999999999986},{"$f":"MAX(Q25:Q36)","v":29.8}]
[]
[null,null,null,null,null,null,null,null,null,null,{"$f":"+A8","v":2024},"mg/Nm3","Highest daily 95%ile 10-min average","Monthly mean of 10-min averages","Highest 10-min average","Monthly mean of  daily averages","Highest daily average"]
[null,null,null,null,null,null,null,null,null,null,"A3","Jan"]
[null,null,null,null,null,null,null,null,null,null,null,"Feb"]
[null,null,null,null,null,null,null,null,null,null,null,"Mar"]
[null,null,null,null,null,null,null,null,null,null,null,"Apr"]
[null,null,null,null,null,null,null,null,null,null,null,"May"]
[null,null,null,null,null,null,null,null,null,null,null,"Jun"]
[null,null,null,null,null,null,null,null,null,null,null,"Jul"]
[null,null,null,null,null,null,null,null,null,null,null,"Aug"]
[null,null,null,null,null,null,null,null,null,null,null,"Sep"]
[null,null,null,null,null,null,null,null,null,null,null,"Oct"]
[null,null,null,null,null,null,null,null,null,null,null,"Nov"]
["Comments :",null,null,null,null,null,null,null,null,null,null,"Dec"]
["Environment Agency explanatory note: The 10-minute average ELV is based on the “95th percentile”. In this case this means that 95% of the 10 minute averages in the relevant 24-hour period (i.e. 137) must be below 150 mg/Nm3, and 5% (i.e. 7) are allowed to be any value above 150 mg/Nm3. Whilst we expect operators to minimise CO emissions at all times, it is perfectly acceptable for the value of the maximum 10-minute average to be above 150 mg/Nm3, provided the 95th percentile ELV has been met for that period. ",null,null,null,null,null,null,null,null,null,null,"Annual",{"$f":"AVERAGE(M40:M51)","v":{"$error":"#DIV/0!"}},null,{"$f":"MAX(O40:O51)","v":0},{"$f":"AVERAGE(P40:P51)","v":{"$error":"#DIV/0!"}},{"$f":"MAX(Q40:Q51)","v":0}]
[]
[null,null,null,null,null,null,null,null,null,null,{"$f":"+A8","v":2024},"mg/Nm3","Highest daily 95%ile 10-min average","Monthly mean of 10-min averages","Highest 10-min average","Monthly mean of  daily averages","Highest daily average"]
[null,null,null,null,null,null,null,null,null,null,"A4","Jan"]
[null,null,null,null,null,null,null,null,null,null,null,"Feb"]
[null,null,null,null,null,null,null,null,null,null,null,"Mar"]
[null,null,null,null,null,null,null,null,null,null,null,"Apr"]
[null,null,null,null,null,null,null,null,null,null,null,"May"]
[null,null,null,null,null,null,null,null,null,null,null,"Jun"]
[null,null,null,null,null,null,null,null,null,null,null,"Jul"]
[null,null,null,null,null,null,null,null,null,null,null,"Aug"]
[null,null,null,null,null,null,null,null,null,null,null,"Sep"]
[null,null,null,null,null,null,null,null,null,null,null,"Oct"]
[null,null,null,null,null,null,null,null,null,null,null,"Nov"]
[null,null,null,null,null,null,null,null,null,null,null,"Dec"]
[null,null,null,null,null,null,null,null,null,null,null,"Annual",{"$f":"AVERAGE(M55:M66)","v":{"$error":"#DIV/0!"}},null,{"$f":"MAX(O55:O66)","v":0},{"$f":"AVERAGE(P55:P66)","v":{"$error":"#DIV/0!"}},{"$f":"MAX(Q55:Q66)","v":0}]
[]
[null,null,null,null,null,null,null,null,null,null,{"$f":"+A8","v":2024},"mg/Nm3","95%ile 10-min avg maximum","Monthly CO 10-min avg mean","10-min avg maximum","Monthly daily mean","Monthly daily maximum"]
[null,null,null,null,null,null,null,null,null,null,"A5","Jan"]
[null,null,null,null,null,null,null,null,null,null,null,"Feb"]
[null,null,null,null,null,null,null,null,null,null,null,"Mar"]
[null,null,null,null,null,null,null,null,null,null,null,"Apr"]
[null,null,null,null,null,null,null,null,null,null,null,"May"]
[null,null,null,null,null,null,null,null,null,null,null,"Jun"]
[null,null,null,null,null,null,null,null,null,null,null,"Jul"]
[null,null,null,null,null,null,null,null,null,null,null,"Aug"]
[null,null,null,null,null,null,null,null,null,null,null,"Sep"]
[null,null,null,null,null,null,null,null,null,null,null,"Oct"]
[null,null,null,null,null,null,null,null,null,null,null,"Nov"]
[null,null,null,null,null,null,null,null,null,null,null,"Dec"]
[null,null,null,null,null,null,null,null,null,null,null,"Annual",{"$f":"AVERAGE(M70:M81)","v":{"$error":"#DIV/0!"}},null,{"$f":"MAX(O70:O81)","v":0},{"$f":"AVERAGE(P70:P81)","v":{"$error":"#DIV/0!"}},{"$f":"MAX(Q70:Q81)","v":0}]

{"sheet":"NH3","index":22,"n_rows":79,"n_cols":17,"rows_kept":79,"cut":false,"hidden":false,"merged":[[3,16,7,18],[9,16,11,18],[12,16,15,18],[66,9,78,9],[4,1,4,3],[4,4,4,6],[4,9,4,14],[6,9,18,9],[21,9,33,9],[36,9,48,9],[47,0,47,6],[48,0,51,6],[51,9,63,9],[18,4,18,6]]}
[{"$f":"+'Cover Page'!$B$29","v":"Annual Performance Report 2024"},null,null,null,{"$f":"+'Cover Page'!$B$33","v":"Eastcroft  EfW Site"}]
[]
["Monitoring of Ammnonia emissions ",null,null,"Whole Installation",null,null,"See  Notes in Cell Q3",null,null,{"$f":"+A3","v":"Monitoring of Ammnonia emissions "},null,null,null,"Per Combustion Line",null,null,"Notes:"]
[null,null,null,null,null,null,null,null,null,null,null,null,null,null,null,null,"User to add logic to complete Whole installation, Table A5:G18. From the data in Per Combustion Line, Table J6:O79, subject to No. of lines installed"]
[{"$f":"+'Cover Page'!C39","v":2024},"1/2 Hourly Reference Periods",null,null,"Daily Reference Periods"]
["mg/Nm3","1/2 hourly NH3 ELV","Monthly mean of half-hourly averages","Highest half- hourly average","Daily NH3 ELV","Monthly mean of  daily averages","Highest daily average",null,null,{"$f":"+A5","v":2024},"mg/Nm3","Monthly mean of half-hourly averages","Highest half- hourly average","Monthly mean of  daily averages","Highest daily average"]
["Jan","None",1.5499999999999998,13.9,15,1.5,3.4,null,null,"A1","Jan",1.2,7,1.1000000000000001,2.4]
["Feb",{"$f":"+B7","v":"None"},1.75,12.2,15,1.75,3.1,null,null,null,"Feb",1.5,9.4,1.5,2.5]
["Mar",{"$f":"+B8","v":"None"},1.8,10,15,1.75,3,null,null,null,"Mar",1.6,9.8000000000000007,1.5,2.1,null,"Whole Installation table A5:G18:"]
["Apr","None",1.5,7.4,15,1.4500000000000002,2.4,null,null,null,"Apr",1.3,5.9,1.3,2.4,null,"Mean: for 1/2 hourly and daily periods calculate mean of values across all operational combustion lines for the month"]
["May","None",1.5,9.5,15,1.5,2.4,null,null,null,"May",1.2,8.3000000000000007,1.2,1.8]
["Jun","None",1.5499999999999998,17.7,15,1.5,2.7,null,null,null,"Jun",1.2,8.8000000000000007,1.2,2.1]
["Jul","None",3.8,24.8,15,3.5,12.2,null,null,null,"Jul",2.2999999999999998,12.2,2.2000000000000002,4.7,null,"Maximum: for 1/2 hourly and daily periods use the highest value across all operational combustion lines for the month"]
["Aug","None",1.25,6.6,15,1.2,2.1,null,null,null,"Aug",1,4,0.9,1.9]
["Sep","None",0.95,10.6,15,0.9,1.6,null,null,null,"Sep",0.9,10.6,0.9,1.6]
["Oct","None",1.1499999999999999,7.9,15,1.1499999999999999,2,null,null,null,"Oct",1,7.9,1,1.5]
["Nov","None",0.95000000000000007,7,15,0.85,2.2999999999999998,null,null,null,"Nov",0.8,7,0.7,1.2]
["Dec","None",0.65,6.8,15,0.6,2.1,null,null,null,"Dec",0.5,5.5,0.5,0.9]
[null,null,null,null,null,null,null,null,null,null,"Annual",{"$f":"AVERAGE(L7:L18)","v":1.2083333333333335},{"$f":"MAX(M7:M18)","v":12.2},{"$f":"AVERAGE(N7:N18)","v":1.1666666666666667},{"$f":"MAX(O7:O18)","v":4.7}]
[]
[null,null,null,null,null,null,null,null,null,{"$f":"+A5","v":2024},"mg/Nm3","Monthly mean of half-hourly averages","Highest half- hourly average","Monthly mean of  daily averages","Highest daily average"]
[null,null,null,null,null,null,null,null,null,"A2","Jan",1.9,13.9,1.9,3.4]
[null,null,null,null,null,null,null,null,null,null,"Feb",2,12.2,2,3.1]
[null,null,null,null,null,null,null,null,null,null,"Mar",2,10,2,3]
[null,null,null,null,null,null,null,null,null,null,"Apr",1.7,7.4,1.6,2.4]
[null,null,null,null,null,null,null,null,null,null,"May",1.8,9.5,1.8,2.4]
[null,null,null,null,null,null,null,null,null,null,"Jun",1.9,17.7,1.8,2.7]
[null,null,null,null,null,null,null,null,null,null,"Jul",5.3,24.8,4.8,12.2]
[null,null,null,null,null,null,null,null,null,null,"Aug",1.5,6.6,1.5,2.1]
[null,null,null,null,null,null,null,null,null,null,"Sep",1,4.4000000000000004,0.9,1.5]
[null,null,null,null,null,null,null,null,null,null,"Oct",1.3,6.4,1.3,2]
[null,null,null,null,null,null,null,null,null,null,"Nov",1.1000000000000001,3.6,1,2.2999999999999998]
[null,null,null,null,null,null,null,null,null,null,"Dec",0.8,6.8,0.7,2.1]
[null,null,null,null,null,null,null,null,null,null,"Annual",{"$f":"AVERAGE(L22:L33)","v":1.8583333333333336},{"$f":"MAX(M22:M33)","v":24.8},{"$f":"AVERAGE(N22:N33)","v":1.7750000000000001},{"$f":"MAX(O22:O33)","v":12.2}]
[]
[null,null,null,null,null,null,null,null,null,{"$f":"+A5","v":2024},"mg/Nm3","Monthly mean of half-hourly averages","Highest half- hourly average","Monthly mean of  daily averages","Highest daily average"]
[null,null,null,null,null,null,null,null,null,"A3","Jan"]
[null,null,null,null,null,null,null,null,null,null,"Feb"]
[null,null,null,null,null,null,null,null,null,null,"Mar"]
[null,null,null,null,null,null,null,null,null,null,"Apr"]
[null,null,null,null,null,null,null,null,null,null,"May"]
[null,null,null,null,null,null,null,null,null,null,"Jun"]
[null,null,null,null,null,null,null,null,null,null,"Jul"]
[null,null,null,null,null,null,null,null,null,null,"Aug"]
[null,null,null,null,null,null,null,null,null,null,"Sep"]
[null,null,null,null,null,null,null,null,null,null,"Oct"]
[null,null,null,null,null,null,null,null,null,null,"Nov"]
["Comments :",null,null,null,null,null,null,null,null,null,"Dec"]
["An indicated ELV value of zero in the table above means that no ammonia limit is/was set in the permit.  ",null,null,null,null,null,null,null,null,null,"Annual",{"$f":"AVERAGE(L37:L48)","v":{"$error":"#DIV/0!"}},{"$f":"MAX(M37:M48)","v":0},{"$f":"AVERAGE(N37:N48)","v":{"$error":"#DIV/0!"}},{"$f":"MAX(O37:O48)","v":0}]
[]
[null,null,null,null,null,null,null,null,null,{"$f":"+A5","v":2024},"mg/Nm3","Monthly mean of half-hourly averages","Highest half- hourly average","Monthly mean of  daily averages","Highest daily average"]
[null,null,null,null,null,null,null,null,null,"A4","Jan"]
[null,null,null,null,null,null,null,null,null,null,"Feb"]
[null,null,null,null,null,null,null,null,null,null,"Mar"]
[null,null,null,null,null,null,null,null,null,null,"Apr"]
[null,null,null,null,null,null,null,null,null,null,"May"]
[null,null,null,null,null,null,null,null,null,null,"Jun"]
[null,null,null,null,null,null,null,null,null,null,"Jul"]
[null,null,null,null,null,null,null,null,null,null,"Aug"]
[null,null,null,null,null,null,null,null,null,null,"Sep"]
[null,null,null,null,null,null,null,null,null,null,"Oct"]
[null,null,null,null,null,null,null,null,null,null,"Nov"]
[null,null,null,null,null,null,null,null,null,null,"Dec"]
[null,null,null,null,null,null,null,null,null,null,"Annual",{"$f":"AVERAGE(L52:L63)","v":{"$error":"#DIV/0!"}},{"$f":"MAX(M52:M63)","v":0},{"$f":"AVERAGE(N52:N63)","v":{"$error":"#DIV/0!"}},{"$f":"MAX(O52:O63)","v":0}]
[]
[null,null,null,null,null,null,null,null,null,{"$f":"+A5","v":2024},"mg/Nm3","Monthly mean of half-hourly averages","Highest half- hourly average","Monthly mean of  daily averages","Highest daily average"]
[null,null,null,null,null,null,null,null,null,"A5","Jan"]
[null,null,null,null,null,null,null,null,null,null,"Feb"]
[null,null,null,null,null,null,null,null,null,null,"Mar"]
[null,null,null,null,null,null,null,null,null,null,"Apr"]
[null,null,null,null,null,null,null,null,null,null,"May"]
[null,null,null,null,null,null,null,null,null,null,"Jun"]
[null,null,null,null,null,null,null,null,null,null,"Jul"]
[null,null,null,null,null,null,null,null,null,null,"Aug"]
[null,null,null,null,null,null,null,null,null,null,"Sep"]
[null,null,null,null,null,null,null,null,null,null,"Oct"]
[null,null,null,null,null,null,null,null,null,null,"Nov"]
[null,null,null,null,null,null,null,null,null,null,"Dec"]
[null,null,null,null,null,null,null,null,null,null,"Annual",{"$f":"AVERAGE(L67:L78)","v":{"$error":"#DIV/0!"}},{"$f":"MAX(M67:M78)","v":0},{"$f":"AVERAGE(N67:N78)","v":{"$error":"#DIV/0!"}},{"$f":"MAX(O67:O78)","v":0}]

{"sheet":"Template changes log","index":23,"n_rows":18,"n_cols":3,"rows_kept":18,"cut":false,"hidden":false,"merged":[]}
["Log of changes to template (Environment Agency use only)"]
[]
["Date","Description of change","New version number and date"]
["2024-01-16","Air (periodic) tab: corrected default O2 reference from 6 to 11% ","Version 23.5a (for incinerators) - 16/01/2024"]
["2024-09-23","Air (periodic) tab: corrected symbol for Thallium to Tl"]
["2024-09-23","Air (periodic) tab: removed last year's references to different emission limit values applying from 03/12/23 and updated all relevant ELVs"]
["2024-09-23","Tabs for continuously monitored pollutants (HCl, SO2 etc.): changed terminology in table headings to improve clarity"]
["2024-09-23","Tabs for continuously monitored pollutants (HCl, SO2 etc.): removed last year's references to different emission limit values applying from 03/12/23 and updated all relevant ELVs"]
["2024-09-23","Perf 1 tab: updated formula for water usage to report m3 rather than litres and corrected error with formula copying operator name"]
["2024-09-23","Operational Summary tab: table added on start-ups and shut-downs"]
["2024-09-23","Operational Summary tab: table added on dioxins and mercury protocols"]
["2024-09-23","Operational Summary tab: table added on AST, QAL 2 and calibration functions"]
["2024-09-23","CO2 N2O tab: various changes made to notes to reflect the fact that most plants should now have calibrated CEMS and flow meters + some have C14 samplers and more up to date industry data","Version 24a (for incinerators) - 23/09/24"]
["2024-11-08","CO2 N2O tab: Changed the N2O CO2 equivalence factor from 298 to 265 in line with recently updated government greenhouse gas figures: https://www.gov.uk/government/publications/greenhouse-gas-reporting-conversion-factors-2024"]
["2024-11-08","CO2 N2O tab: Added an additional requirement for municipal EfW plants to state the yearly average biogenic percentage of the waste by mass, and reference to a document which sets out a methodology for calculating NCV of waste from the results of C14 sampling."]
["2024-11-08","Permit Compliance tab: Two additional columns added + explanatory notes to the table entitled \"Summary of non-compliances under the permit\" to allow CCS scores to be stated where relevant. "]
["2024-11-08","Residue Quality tab: Note added explaining application of TOC and LOI limits and asking operators to report both metrics where measured. ","Version 24.1a (for incinerators) - 08/11/24"]
["2024-11-27","Operational Summary tab: Tables on mercury & dioxins protocols and ASTs removed (covered instead by new tables added to updated Air 9 periodic monitoring form)","Version 24.2a (for incinerators) - 27/11/24"]

{"sheet":"Sheet1","index":24,"n_rows":0,"n_cols":0,"rows_kept":0,"cut":false,"hidden":false,"merged":[]}